Workbook

Sheet tabula
C2: "Latviešu mūzikas viktorīna" (tiešsaistē / vebinārā) | 2024.gada 29.novembris
B3: Grupa | C3: # | D3: Dalībnieks | Raunds | Tēma | Max punkti raundā (bez bonusiem) | E3: 1 | F3: 2 | G3: 3 | H3: 4 | I3: 5 | J3: 6 | K3: 7 | L3: 8 | M3: 9 | N3: 10 | O3: KOPĀ | P3: Laiks kopā uz pareizajām atbildēm | Q3: Pareizās atbildes (max 67) | R3: Vid.laiks uz 1 pareizo atb.
E4: Pavediens: Skan pavisam citādāk | F4: 80-ie | G4: Ekspresis | H4: 90-ie | I4: Vizuālais | J4: 2000-ie | K4: Risks: Izklausās dzirdēts | L4: 2010-ie | M4: Kas kopīgs? | N4: 2020-ie
E5: 150 | F5: 150 | G5: 204 | H5: 150 | I5: 150 | J5: 150 | K5: 120 | L5: 150 | M5: 180 | N5: 150 | O5: =SUM(E5:N5) -> 1554
D6: Vidējie rādītāji | E6: =ROUND(AVERAGE(E7:E114),1) -> 71.4 | F6: =ROUND(AVERAGE(F7:F114),1) -> 69.5 | G6: =ROUND(AVERAGE(G7:G114),1) -> 107.4 | H6: =ROUND(AVERAGE(H7:H114),1) -> 57.1 | I6: =ROUND(AVERAGE(I7:I114),1) -> 82.9 | J6: =ROUND(AVERAGE(J7:J114),1) -> 100.4 | K6: =ROUND(AVERAGE(K7:K114),1) -> 46.2 | L6: =ROUND(AVERAGE(L7:L114),1) -> 69.8 | M6: =ROUND(AVERAGE(M7:M114),1) -> 92.5 | N6: =ROUND(AVERAGE(N7:N114),1) -> 62.5 | O6: =ROUND(AVERAGE(O7:O114),1) -> 759.7 | Q6: =ROUND(AVERAGE(Q7:Q124),2) -> 43.57
B7: 1 | C7: 1 | D7: Labvēlīgais TOPs | E7: 107 | F7: 142 | G7: 115 | H7: 149 | I7: 111 | J7: 131 | K7: 79 | L7: 98 | M7: 140 | N7: 131 | O7: 1203 | P7: 07 min. 43,608 | Q7: 63 | R7: 07,359 sek.
B8: 1 | C8: 2 | D8: BraveDucks | E8: 96 | F8: 132 | G8: 101 | H8: 110 | I8: 109 | J8: 90 | K8: 73 | L8: 108 | M8: 169 | N8: 131 | O8: 1119 | P8: 05 min. 15,994 | Q8: 56 | R8: 05,643 sek.
B9: 3 | C9: 3 | D9: Terase | E9: 94 | F9: 133 | G9: 131 | H9: 98 | I9: 103 | J9: 136 | K9: 73 | L9: 91 | M9: 147 | N9: 105 | O9: 1111 | P9: 07 min. 41,221 | Q9: 60 | R9: 07,687 sek.
B10: 1 | C10: 4 | D10: Rainisskrienviens | E10: 98 | F10: 61 | G10: 182 | H10: 138 | I10: 112 | J10: 86 | K10: 101 | L10: 104 | M10: 100 | N10: 123 | O10: 1105 | P10: 04 min. 46,864 | Q10: 55 | R10: 05,216 sek.
B11: 3 | C11: 5 | D11: MELDRI | E11: 96 | F11: 112 | G11: 133 | H11: 87 | I11: 103 | J11: 124 | K11: 73 | L11: 92 | M11: 156 | N11: 120 | O11: 1096 | P11: 07 min. 18,505 | Q11: 59 | R11: 07,432 sek.
B12: 1 | C12: 6 | D12: Vilciņi | E12: 92 | F12: 87 | G12: 156 | H12: 84 | I12: 93 | J12: 122 | K12: 88 | L12: 100 | M12: 130 | N12: 129 | O12: 1081 | P12: 09 min. 20,982 | Q12: 61 | R12: 09,196 sek.
B13: 1 | C13: 7 | D13: nezinu | E13: 91 | F13: 104 | G13: 144 | H13: 89 | I13: 108 | J13: 129 | K13: 49 | L13: 103 | M13: 146 | N13: 113 | O13: 1076 | P13: 07 min. 46,067 | Q13: 59 | R13: 07,899 sek.
B14: 2 | C14: 8 | D14: Bunkurs_13 | E14: 65 | F14: 116 | G14: 152 | H14: 100 | I14: 102 | J14: 138 | K14: 76 | L14: 87 | M14: 124 | N14: 79 | O14: 1039 | P14: 06 min. 16,146 | Q14: 55 | R14: 06,839 sek.
B15: 3 | C15: 9 | D15: KĻAVINSKI | E15: 94 | F15: 99 | G15: 141 | H15: 92 | I15: 82 | J15: 133 | K15: 75 | L15: 94 | M15: 133 | N15: 94 | O15: 1037 | P15: 06 min. 56,207 | Q15: 56 | R15: 07,432 sek.
B16: 2 | C16: 10 | D16: Bagete | E16: 96 | F16: 85 | G16: 157 | H16: 80 | I16: 92 | J16: 134 | K16: 46 | L16: 110 | M16: 135 | N16: 96 | O16: 1031 | P16: 05 min. 40,977 | Q16: 54 | R16: 06,314 sek.
B17: 2 | C17: 11 | D17: Tītara giross | E17: 94 | F17: 85 | G17: 128 | H17: 59 | I17: 107 | J17: 135 | K17: 67 | L17: 117 | M17: 155 | N17: 84 | O17: 1031 | P17: 07 min. 33,276 | Q17: 56 | R17: 08,094 sek.
B18: 2 | C18: 12 | D18: PAGASTMĀJA | E18: 104 | F18: 110 | G18: 101 | H18: 93 | I18: 111 | J18: 137 | K18: 12 | L18: 98 | M18: 128 | N18: 129 | O18: 1023 | P18: 06 min. 08,914 | Q18: 54 | R18: 06,832 sek.
B19: 3 | C19: 13 | D19: Madride | E19: 103 | F19: 93 | G19: 169 | H19: 82 | I19: 96 | J19: 134 | K19: 50 | L19: 78 | M19: 160 | N19: 57 | O19: 1022 | P19: 06 min. 25,113 | Q19: 55 | R19: 07,002 sek.
B20: 1 | C20: 14 | D20: Bandītu perēklis | E20: 75 | F20: 62 | G20: 141 | H20: 56 | I20: 102 | J20: 115 | K20: 106 | L20: 109 | M20: 117 | N20: 129 | O20: 1012 | P20: 05 min. 34,587 | Q20: 53 | R20: 06,313 sek.
B21: 3 | C21: 15 | D21: SauleLecBružiksGatavojasIsBack | E21: 113 | F21: 86 | G21: 145 | H21: 104 | I21: 130 | J21: 138 | K21: 31 | L21: 54 | M21: 109 | N21: 98 | O21: 1008 | P21: 05 min. 25,843 | Q21: 52 | R21: 06,266 sek.
B22: 3 | C22: 16 | D22: Jaunanglijas gliemju zupa | E22: 117 | F22: 116 | G22: 120 | H22: 86 | I22: 102 | J22: 114 | K22: 23 | L22: 123 | M22: 158 | N22: 45 | O22: 1004 | P22: 06 min. 20,977 | Q22: 53 | R22: 07,188 sek.
B23: 3 | C23: 17 | D23: Sigulda ierauj! | E23: 116 | F23: 86 | G23: 125 | H23: 107 | I23: 65 | J23: 128 | K23: 81 | L23: 108 | M23: 70 | N23: 118 | O23: 1004 | P23: 08 min. 47,814 | Q23: 57 | R23: 09,260 sek.
B24: 1 | C24: 18 | D24: Inspektors IEPŪTNIS | E24: 108 | F24: 126 | G24: 89 | H24: 82 | I24: 62 | J24: 128 | K24: 68 | L24: 99 | M24: 115 | N24: 121 | O24: 998 | P24: 07 min. 05,892 | Q24: 54 | R24: 07,887 sek.
B25: 1 | C25: 19 | D25: DJIVCREC | E25: 90 | F25: 129 | G25: 104 | H25: 73 | I25: 112 | J25: 109 | K25: 10 | L25: 124 | M25: 138 | N25: 108 | O25: 997 | P25: 07 min. 02,456 | Q25: 55 | R25: 07,681 sek.
B26: 3 | C26: 20 | D26: Bugatti 21023 | E26: 107 | F26: 84 | G26: 154 | H26: 35 | I26: 93 | J26: 125 | K26: 84 | L26: 102 | M26: 111 | N26: 94 | O26: 989 | P26: 07 min. 11,521 | Q26: 55 | R26: 07,846 sek.
C27: 21 | D27: MIKO | E27: 80 | F27: 111 | G27: 103 | H27: 110 | I27: 111 | J27: 122 | K27: 66 | L27: 95 | M27: 104 | N27: 86 | O27: 988 | P27: 08 min. 32,969 | Q27: 55 | R27: 09,327 sek.
C28: 22 | D28: Atbildīgais redaktors | E28: 96 | F28: 91 | G28: 167 | H28: 79 | I28: 90 | J28: 135 | K28: 53 | L28: 77 | M28: 134 | N28: 65 | O28: 987 | P28: 06 min. 08,515 | Q28: 53 | R28: 06,953 sek.
C29: 23 | D29: Pelmenis Amerikā | E29: 136 | F29: 57 | G29: 159 | H29: 94 | I29: 116 | J29: 65 | K29: 58 | L29: 96 | M29: 122 | N29: 80 | O29: 983 | P29: 04 min. 13,804 | Q29: 49 | R29: 05,180 sek.
C30: 24 | D30: ***Mēs-foršie brīvprātīgie*** | E30: 61 | F30: 131 | G30: 108 | H30: 65 | I30: 87 | J30: 108 | K30: 79 | L30: 104 | M30: 105 | N30: 115 | O30: 963 | P30: 07 min. 41,221 | Q30: 53 | R30: 08,702 sek.
C31: 25 | D31: Zvirbulis122 | E31: 77 | F31: 129 | G31: 121 | H31: 55 | I31: 65 | J31: 122 | K31: 84 | L31: 85 | M31: 105 | N31: 120 | O31: 963 | P31: 07 min. 57,521 | Q31: 54 | R31: 08,843 sek.
C32: 26 | D32: Klieši & Draugi | E32: 93 | F32: 78 | G32: 111 | H32: 82 | I32: 89 | J32: 134 | K32: 32 | L32: 119 | M32: 111 | N32: 99 | O32: 948 | P32: 07 min. 08,873 | Q32: 53 | R32: 08,092 sek.
C33: 27 | D33: DUNDUKI | E33: 102 | F33: 82 | G33: 79 | H33: 73 | I33: 101 | J33: 111 | K33: 88 | L33: 100 | M33: 117 | N33: 92 | O33: 945 | P33: 10 min. 52,812 | Q33: 58 | R33: 11,255 sek.
C34: 28 | D34: Labākie kaimiņi | E34: 87 | F34: 141 | G34: 125 | H34: 89 | I34: 108 | J34: 129 | K34: 81 | L34: 78 | M34: 67 | N34: 30 | O34: 935 | P34: 06 min. 11,100 | Q34: 50 | R34: 07,422 sek.
C35: 29 | D35: Belinda | E35: 103 | F35: 66 | G35: 150 | H35: 120 | I35: 90 | J35: 118 | K35: 45 | L35: 75 | M35: 109 | N35: 44 | O35: 920 | P35: 05 min. 03,604 | Q35: 48 | R35: 06,325 sek.
C36: 30 | D36: 2022-02-01 | E36: 113 | F36: 99 | G36: 101 | H36: 45 | I36: 97 | J36: 121 | K36: 77 | L36: 55 | M36: 105 | N36: 99 | O36: 912 | P36: 08 min. 36,038 | Q36: 53 | R36: 09,737 sek.
C37: 31 | D37: VECIE KAPI | E37: 99 | F37: 110 | G37: 66 | H37: 42 | I37: 85 | J37: 135 | K37: 53 | L37: 104 | M37: 129 | N37: 84 | O37: 907 | P37: 07 min. 01,211 | Q37: 50 | R37: 08,424 sek.
C38: 32 | D38: Salaspilieši | E38: 64 | F38: 77 | G38: 83 | H38: 77 | I38: 109 | J38: 120 | K38: 67 | L38: 85 | M38: 112 | N38: 111 | O38: 905 | P38: 09 min. 22,249 | Q38: 53 | R38: 10,608 sek.
C39: 33 | D39: Kā i, tā i | E39: 84 | F39: 102 | G39: 157 | H39: 45 | I39: 88 | J39: 96 | K39: 41 | L39: 80 | M39: 124 | N39: 87 | O39: 904 | P39: 08 min. 25,020 | Q39: 53 | R39: 09,529 sek.
C40: 34 | D40: Eltons Kleptons | E40: 97 | F40: 104 | G40: 93 | H40: 65 | I40: 121 | J40: 115 | K40: 91 | L40: 62 | M40: 136 | N40: 16 | O40: 900 | P40: 05 min. 43,674 | Q40: 47 | R40: 07,312 sek.
C41: 35 | D41: Patrioti | E41: 88 | F41: 98 | G41: 109 | H41: 83 | I41: 81 | J41: 130 | K41: 27 | L41: 81 | M41: 95 | N41: 105 | O41: 897 | P41: 08 min. 05,183 | Q41: 52 | R41: 09,330 sek.
C42: 36 | D42: KAZHAMACK | E42: 106 | F42: 47 | G42: 89 | H42: 111 | I42: 113 | J42: 139 | K42: 80 | L42: 71 | M42: 107 | N42: 31 | O42: 894 | P42: 06 min. 24,853 | Q42: 48 | R42: 08,018 sek.
C43: 37 | D43: Skaidrītes radio 2 | E43: 105 | F43: 59 | G43: 136 | H43: 47 | I43: 103 | J43: 136 | K43: 71 | L43: 68 | M43: 91 | N43: 56 | O43: 872 | P43: 05 min. 26,360 | Q43: 47 | R43: 06,944 sek.
C44: 38 | D44: Pilskalni | E44: 112 | F44: 38 | G44: 123 | H44: 69 | I44: 123 | J44: 131 | K44: 49 | L44: 59 | M44: 131 | N44: 36 | O44: 871 | P44: 05 min. 24,896 | Q44: 46 | R44: 07,063 sek.
C45: 39 | D45: Hugo | E45: 76 | F45: 60 | G45: 149 | H45: 59 | I45: 80 | J45: 110 | K45: 13 | L45: 97 | M45: 117 | N45: 109 | O45: 870 | P45: 08 min. 12,675 | Q45: 51 | R45: 09,660 sek.
C46: 40 | D46: Matīss un Signija | E46: 102 | F46: 93 | G46: 129 | H46: 77 | I46: 61 | J46: 128 | K46: 17 | L46: 126 | M46: 55 | N46: 76 | O46: 864 | P46: 08 min. 38,558 | Q46: 52 | R46: 09,972 sek.
C47: 41 | D47: Samtudās | E47: 61 | F47: 104 | G47: 115 | H47: 56 | I47: 83 | J47: 102 | K47: 78 | L47: 86 | M47: 92 | N47: 86 | O47: 863 | P47: 08 min. 22,725 | Q47: 51 | R47: 09,857 sek.
C48: 42 | D48: BSK | E48: 81 | F48: 40 | G48: 116 | H48: 58 | I48: 110 | J48: 122 | K48: 44 | L48: 89 | M48: 92 | N48: 109 | O48: 861 | P48: 06 min. 39,624 | Q48: 49 | R48: 08,156 sek.
C49: 43 | D49: Prāta Vēders | E49: 79 | F49: 93 | G49: 162 | H49: 36 | I49: 71 | J49: 87 | K49: 71 | L49: 85 | M49: 129 | N49: 31 | O49: 844 | P49: 08 min. 13,540 | Q49: 50 | R49: 09,871 sek.
C50: 44 | D50: Galvas blīve | E50: 67 | F50: 61 | G50: 105 | H50: 71 | I50: 104 | J50: 126 | K50: 28 | L50: 86 | M50: 131 | N50: 50 | O50: 829 | P50: 06 min. 49,217 | Q50: 47 | R50: 08,707 sek.
C51: 45 | D51: Ātrais pirts variants | E51: 103 | F51: 81 | G51: 110 | H51: 0 | I51: 55 | J51: 75 | K51: 85 | L51: 101 | M51: 131 | N51: 77 | O51: 818 | P51: 06 min. 22,028 | Q51: 46 | R51: 08,305 sek.
C52: 46 | D52: Kaspars | E52: 88 | F52: 61 | G52: 118 | H52: 62 | I52: 87 | J52: 133 | K52: 60 | L52: 79 | M52: 89 | N52: 37 | O52: 814 | P52: 06 min. 12,887 | Q52: 45 | R52: 08,286 sek.
C53: 47 | D53: Jautrais Jenots Ješka | E53: 103 | F53: 34 | G53: 119 | H53: 84 | I53: 97 | J53: 137 | K53: 93 | L53: 63 | M53: 57 | N53: 22 | O53: 809 | P53: 07 min. 39,650 | Q53: 47 | R53: 09,780 sek.
C54: 48 | D54: kD | E54: 71 | F54: 57 | G54: 94 | H54: 79 | I54: 106 | J54: 143 | K54: 39 | L54: 82 | M54: 91 | N54: 43 | O54: 805 | P54: 06 min. 28,942 | Q54: 45 | R54: 08,643 sek.
C55: 49 | D55: Krauklīt's sēž štābiņā | E55: 46 | F55: 43 | G55: 113 | H55: 48 | I55: 135 | J55: 118 | K55: 71 | L55: 85 | M55: 119 | N55: 21 | O55: 799 | P55: 04 min. 06,337 | Q55: 41 | R55: 06,008 sek.
C56: 50 | D56: Ņiger&CO | E56: 67 | F56: 67 | G56: 89 | H56: 73 | I56: 70 | J56: 121 | K56: 61 | L56: 67 | M56: 83 | N56: 101 | O56: 799 | P56: 10 min. 24,168 | Q56: 52 | R56: 12,003 sek.
C57: 51 | D57: Mammunedziedi | E57: 48 | F57: 95 | G57: 118 | H57: 41 | I57: 68 | J57: 121 | K57: 64 | L57: 50 | M57: 110 | N57: 79 | O57: 794 | P57: 07 min. 53,909 | Q57: 47 | R57: 10,083 sek.
C58: 52 | D58: Guntars Klačs | E58: 87 | F58: 49 | G58: 98 | H58: 126 | I58: 94 | J58: 115 | K58: 7 | L58: 111 | M58: 86 | N58: 20 | O58: 793 | P58: 06 min. 11,247 | Q58: 46 | R58: 08,071 sek.
C59: 53 | D59: Jāni Drāzmani | E59: 74 | F59: 88 | G59: 118 | H59: 90 | I59: 107 | J59: 137 | K59: 38 | L59: 55 | M59: 42 | N59: 37 | O59: 786 | P59: 05 min. 00,509 | Q59: 44 | R59: 06,830 sek.
C60: 54 | D60: Kriptomafija | E60: 75 | F60: 67 | G60: 136 | H60: 60 | I60: 69 | J60: 107 | K60: 44 | L60: 57 | M60: 67 | N60: 100 | O60: 782 | P60: 07 min. 22,506 | Q60: 46 | R60: 09,620 sek.
C61: 55 | D61: Blondie grēki | E61: 80 | F61: 52 | G61: 96 | H61: 64 | I61: 108 | J61: 115 | K61: 23 | L61: 46 | M61: 106 | N61: 75 | O61: 765 | P61: 08 min. 51,717 | Q61: 48 | R61: 11,077 sek.
C62: 56 | D62: Rozā mices | E62: 83 | F62: 60 | G62: 109 | H62: 44 | I62: 72 | J62: 72 | K62: 62 | L62: 103 | M62: 124 | N62: 35 | O62: 764 | P62: 04 min. 28,391 | Q62: 40 | R62: 06,710 sek.
C63: 57 | D63: Miglas rīts | E63: 109 | F63: 83 | G63: 123 | H63: 44 | I63: 41 | J63: 132 | K63: 45 | L63: 88 | M63: 97 | N63: 0 | O63: 762 | P63: 05 min. 15,257 | Q63: 42 | R63: 07,506 sek.
C64: 58 | D64: Bīstamie knābīši | E64: 70 | F64: 52 | G64: 111 | H64: 81 | I64: 107 | J64: 106 | K64: 69 | L64: 39 | M64: 47 | N64: 80 | O64: 762 | P64: 06 min. 42,146 | Q64: 44 | R64: 09,140 sek.
C65: 59 | D65: Vētra nāk | E65: 69 | F65: 57 | G65: 88 | H65: 77 | I65: 57 | J65: 100 | K65: 48 | L65: 92 | M65: 131 | N65: 42 | O65: 761 | P65: 09 min. 09,105 | Q65: 48 | R65: 11,440 sek.
C66: 60 | D66: Stirniņas | E66: 44 | F66: 52 | G66: 71 | H66: 59 | I66: 85 | J66: 119 | K66: 48 | L66: 72 | M66: 83 | N66: 109 | O66: 742 | P66: 08 min. 40,342 | Q66: 46 | R66: 11,312 sek.
C67: 61 | D67: Suituceļš Nejautā | E67: 75 | F67: 92 | G67: 111 | H67: 77 | I67: 84 | J67: 90 | K67: 36 | L67: 56 | M67: 83 | N67: 33 | O67: 737 | P67: 05 min. 15,928 | Q67: 41 | R67: 07,706 sek.
C68: 62 | D68: Chocolata | E68: 70 | F68: 90 | G68: 89 | H68: 24 | I68: 91 | J68: 111 | K68: 84 | L68: 57 | M68: 96 | N68: 16 | O68: 728 | P68: 05 min. 51,263 | Q68: 40 | R68: 08,782 sek.
C69: 63 | D69: stabulēni | E69: 35 | F69: 61 | G69: 82 | H69: 23 | I69: 70 | J69: 100 | K69: 49 | L69: 100 | M69: 73 | N69: 132 | O69: 725 | P69: 06 min. 28,184 | Q69: 42 | R69: 09,242 sek.
C70: 64 | D70: Viljams | E70: 42 | F70: 55 | G70: 100 | H70: 47 | I70: 93 | J70: 131 | K70: 3 | L70: 81 | M70: 124 | N70: 40 | O70: 716 | P70: 05 min. 35,275 | Q70: 41 | R70: 08,177 sek.
C71: 65 | D71: Mandarīni | E71: 78 | F71: 56 | G71: 128 | H71: 36 | I71: 79 | J71: 95 | K71: -2 | L71: 60 | M71: 63 | N71: 123 | O71: 716 | P71: 08 min. 02,865 | Q71: 47 | R71: 10,274 sek.
C72: 66 | D72: Cerība mirst pēdējā | E72: 24 | F72: 21 | G72: 96 | H72: 80 | I72: 78 | J72: 87 | K72: 46 | L72: 76 | M72: 86 | N72: 121 | O72: 715 | P72: 06 min. 36,544 | Q72: 41 | R72: 09,672 sek.
C73: 67 | D73: TAPS AUTO studija | E73: 84 | F73: 31 | G73: 97 | H73: 92 | I73: 103 | J73: 88 | K73: 41 | L73: 65 | M73: 81 | N73: 22 | O73: 704 | P73: 05 min. 39,515 | Q73: 41 | R73: 08,281 sek.
C74: 68 | D74: Meistars un Margarita | E74: 100 | F74: 93 | G74: 91 | H74: 50 | I74: 72 | J74: 79 | K74: -16 | L74: 40 | M74: 117 | N74: 61 | O74: 687 | P74: 06 min. 06,783 | Q74: 40 | R74: 09,170 sek.
C75: 69 | D75: AtjaudīgaPiekdiena | E75: 0 | F75: 86 | G75: 121 | H75: 42 | I75: 88 | J75: 105 | K75: -22 | L75: 71 | M75: 110 | N75: 81 | O75: 682 | P75: 04 min. 59,131 | Q75: 39 | R75: 07,670 sek.
C76: 70 | D76: Imants Dziedoni | E76: 22 | F76: 72 | G76: 104 | H76: 24 | I76: 66 | J76: 56 | K76: 92 | L76: 66 | M76: 71 | N76: 91 | O76: 664 | P76: 06 min. 19,583 | Q76: 39 | R76: 09,733 sek.
C77: 71 | D77: Pūpolu ielas ZOO | E77: 78 | F77: 69 | G77: 147 | H77: 21 | I77: 84 | J77: 77 | K77: 77 | L77: 41 | M77: 19 | N77: 44 | O77: 657 | P77: 05 min. 37,108 | Q77: 39 | R77: 08,644 sek.
C78: 72 | D78: Franču kruasāni | E78: 87 | F78: 30 | G78: 49 | H78: 46 | I78: 87 | J78: 101 | K78: 49 | L78: 64 | M78: 88 | N78: 54 | O78: 655 | P78: 08 min. 40,384 | Q78: 42 | R78: 12,390 sek.
C79: 73 | D79: Mans nav dumš | E79: 27 | F79: 16 | G79: 143 | H79: 63 | I79: 80 | J79: 114 | K79: 16 | L79: 97 | M79: 65 | N79: 30 | O79: 651 | P79: 05 min. 58,654 | Q79: 41 | R79: 08,748 sek.
C80: 74 | D80: Kikariguu | E80: 58 | F80: 40 | G80: 73 | H80: 46 | I80: 88 | J80: 88 | K80: 54 | L80: 74 | M80: 92 | N80: 30 | O80: 643 | P80: 05 min. 00,700 | Q80: 36 | R80: 08,353 sek.
C81: 75 | D81: Pumpurs_Koknese | E81: 33 | F81: 21 | G81: 93 | H81: 23 | I81: 89 | J81: 132 | K81: 24 | L81: 79 | M81: 103 | N81: 35 | O81: 632 | P81: 05 min. 40,528 | Q81: 37 | R81: 09,203 sek.
C82: 76 | D82: Mūrnieki | E82: 86 | F82: 28 | G82: 94 | H82: 21 | I82: 83 | J82: 105 | K82: 13 | L82: 52 | M82: 92 | N82: 50 | O82: 624 | P82: 05 min. 59,838 | Q82: 39 | R82: 09,227 sek.
C83: 77 | D83: KaiTai | E83: 62 | F83: 59 | G83: 100 | H83: 19 | I83: 76 | J83: 85 | K83: 74 | L83: 26 | M83: 107 | N83: 15 | O83: 623 | P83: 06 min. 45,774 | Q83: 39 | R83: 10,404 sek.
C84: 78 | D84: Petūnijas | E84: 54 | F84: 53 | G84: 91 | H84: 27 | I84: 81 | J84: 95 | K84: 44 | L84: 87 | M84: 34 | N84: 35 | O84: 601 | P84: 06 min. 59,386 | Q84: 39 | R84: 10,753 sek.
C85: 79 | D85: Druuuu | E85: 50 | F85: 33 | G85: 60 | H85: 34 | I85: 105 | J85: 71 | K85: 64 | L85: 59 | M85: 86 | N85: 38 | O85: 600 | P85: 08 min. 15,348 | Q85: 39 | R85: 12,701 sek.
C86: 80 | D86: Tagad zinu - ko nezināju! | E86: 50 | F86: 22 | G86: 141 | H86: 17 | I86: 78 | J86: 45 | K86: 25 | L86: 56 | M86: 94 | N86: 61 | O86: 589 | P86: 04 min. 22,099 | Q86: 35 | R86: 07,489 sek.
C87: 81 | D87: Sanitaaa | E87: 32 | F87: 60 | G87: 110 | H87: 23 | I87: 62 | J87: 95 | K87: 8 | L87: 76 | M87: 93 | N87: 26 | O87: 585 | P87: 06 min. 25,841 | Q87: 37 | R87: 10,428 sek.
C88: 82 | D88: Mūzikas draugi | E88: 73 | F88: 80 | G88: 105 | H88: 57 | I88: 98 | J88: 44 | K88: 17 | L88: 24 | M88: 58 | N88: 22 | O88: 578 | P88: 06 min. 54,640 | Q88: 37 | R88: 11,206 sek.
C89: 83 | D89: Trakie Truši | E89: 19 | F89: 72 | G89: 86 | H89: 54 | I89: 87 | J89: 70 | K89: 47 | L89: 48 | M89: 66 | N89: 23 | O89: 572 | P89: 05 min. 28,822 | Q89: 34 | R89: 09,671 sek.
C90: 84 | D90: ASICA | E90: 71 | F90: 16 | G90: 78 | H90: 38 | I90: 80 | J90: 89 | K90: 29 | L90: 53 | M90: 63 | N90: 40 | O90: 557 | P90: 07 min. 02,622 | Q90: 36 | R90: 11,740 sek.
C91: 85 | D91: Spalvaina tumbiņa | E91: 55 | F91: 33 | G91: 89 | H91: 73 | I91: 29 | J91: 77 | K91: 44 | L91: 51 | M91: 58 | N91: 33 | O91: 542 | P91: 08 min. 43,349 | Q91: 39 | R91: 13,419 sek.
C92: 86 | D92: ZEMDEGAS | E92: 66 | F92: 80 | G92: 59 | H92: 35 | I92: 67 | J92: 62 | K92: 33 | L92: 27 | M92: 64 | N92: 42 | O92: 535 | P92: 08 min. 13,088 | Q92: 37 | R92: 13,327 sek.
C93: 87 | D93: Pillows | E93: 49 | F93: 54 | G93: 118 | H93: 19 | I93: 58 | J93: 65 | K93: 47 | L93: 23 | M93: 68 | N93: 31 | O93: 532 | P93: 06 min. 03,296 | Q93: 34 | R93: 10,685 sek.
C94: 88 | D94: The pink carrot | E94: 56 | F94: 84 | G94: 91 | H94: 0 | I94: 68 | J94: 103 | K94: 18 | L94: 33 | M94: 38 | N94: 27 | O94: 518 | P94: 05 min. 01,022 | Q94: 32 | R94: 09,407 sek.
C95: 89 | D95: Fredijs un Co. | E95: 59 | F95: 43 | G95: 132 | H95: 20 | I95: 39 | J95: 41 | K95: 14 | L95: 55 | M95: 41 | N95: 60 | O95: 504 | P95: 03 min. 19,946 | Q95: 29 | R95: 06,895 sek.
C96: 90 | D96: Stirnas | E96: 33 | F96: 0 | G96: 105 | H96: 14 | I96: 89 | J96: 86 | K96: 1 | L96: 46 | M96: 64 | N96: 30 | O96: 468 | P96: 04 min. 11,389 | Q96: 29 | R96: 08,669 sek.
C97: 91 | D97: Yuki | E97: 0 | F97: 56 | G97: 127 | H97: 38 | I97: 69 | J97: 73 | K97: 27 | L97: 12 | M97: 55 | N97: 0 | O97: 457 | P97: 04 min. 44,566 | Q97: 29 | R97: 09,813 sek.
C98: 92 | D98: Smart Pants | E98: 16 | F98: 22 | G98: 63 | H98: 23 | I98: 74 | J98: 80 | K98: 51 | L98: 34 | M98: 37 | N98: 27 | O98: 427 | P98: 05 min. 28,010 | Q98: 27 | R98: 12,149 sek.
C99: 93 | D99: Kokinatori | E99: 46 | F99: 19 | G99: 90 | H99: 0 | I99: 64 | J99: 84 | K99: -11 | L99: 24 | M99: 72 | N99: 27 | O99: 415 | P99: 04 min. 59,577 | Q99: 28 | R99: 10,699 sek.
C100: 94 | D100: Ašie5 | E100: 12 | F100: 28 | G100: 97 | H100: 31 | I100: 72 | J100: 66 | K100: 0 | L100: 27 | M100: 38 | N100: 30 | O100: 401 | P100: 05 min. 29,756 | Q100: 28 | R100: 11,777 sek.
C101: 95 | D101: Gulbji Gulbenē | E101: 29 | F101: 60 | G101: 40 | H101: 0 | I101: 65 | J101: 41 | K101: 66 | L101: 16 | M101: 65 | N101: 5 | O101: 387 | P101: 08 min. 48,742 | Q101: 31 | R101: 17,056 sek.
C102: 96 | D102: Jiep | E102: 53 | F102: 29 | G102: 75 | H102: 22 | I102: 38 | J102: 70 | K102: 41 | L102: 9 | M102: 10 | N102: 15 | O102: 362 | P102: 05 min. 22,977 | Q102: 26 | R102: 12,422 sek.
C103: 97 | D103: Vilkoga1 | E103: 33 | F103: 102 | G103: 97 | H103: 0 | I103: 20 | J103: 39 | K103: 22 | L103: 7 | M103: 7 | N103: 7 | O103: 334 | P103: 04 min. 52,210 | Q103: 24 | R103: 12,175 sek.
C104: 98 | D104: Agnese | E104: 37 | F104: 26 | G104: 114 | H104: 23 | I104: 65 | J104: 19 | K104: -10 | L104: 0 | M104: 0 | N104: 0 | O104: 274 | P104: 03 min. 00,132 | Q104: 19 | R104: 09,481 sek.
C105: 99 | D105: Trīc Trīc Favorīts | E105: 0 | F105: 0 | G105: 0 | H105: 0 | I105: 0 | J105: 0 | K105: 0 | L105: 0 | M105: 130 | N105: 22 | O105: 152 | P105: 00 min. 57,868 | Q105: 7 | R105: 08,267 sek.
C106: 100 | D106: Aidža | E106: 37 | F106: 75 | G106: 14 | H106: 0 | I106: 0 | J106: 0 | K106: 0 | L106: 0 | M106: 0 | N106: 0 | O106: 126 | P106: 01 min. 39,831 | Q106: 8 | R106: 12,479 sek.
C107: 101 | D107: Dārta | E107: 36 | F107: 0 | G107: 0 | H107: 0 | I107: 0 | J107: 0 | K107: 0 | L107: 0 | M107: 0 | N107: 0 | O107: 36 | P107: 00 min. 58,417 | Q107: 3 | R107: 19,472 sek.
C108: 102 | D108: Gabriela | E108: 14 | F108: 0 | G108: 0 | H108: 0 | I108: 0 | J108: 0 | K108: 0 | L108: 0 | M108: 0 | N108: 0 | O108: 14 | P108: 00 min. 52,287 | Q108: 2 | R108: 26,144 sek.

Sheet 1-50
C2: =tabula!C2 -> "Latviešu mūzikas viktorīna" (tiešsaistē / vebinārā) | 2024.gada 29.novembris
B3: Grupa | C3: =tabula!C3 -> # | D3: =tabula!D3 -> Dalībnieks | Raunds | Tēma | Max punkti raundā (bez bonusiem) | E3: =tabula!E3 -> 1 | F3: =tabula!F3 -> 2 | G3: =tabula!G3 -> 3 | H3: =tabula!H3 -> 4 | I3: =tabula!I3 -> 5 | J3: =tabula!J3 -> 6 | K3: =tabula!K3 -> 7 | L3: =tabula!L3 -> 8 | M3: =tabula!M3 -> 9 | N3: =tabula!N3 -> 10 | O3: =tabula!O3 -> KOPĀ | P3: =tabula!P3 -> Laiks kopā uz pareizajām atbildēm | Q3: =tabula!Q3 -> Pareizās atbildes (max 67) | R3: =tabula!R3 -> Vid.laiks uz 1 pareizo atb.
E4: =tabula!E4 -> Pavediens: Skan pavisam citādāk | F4: =tabula!F4 -> 80-ie | G4: =tabula!G4 -> Ekspresis | H4: =tabula!H4 -> 90-ie | I4: =tabula!I4 -> Vizuālais | J4: =tabula!J4 -> 2000-ie | K4: =tabula!K4 -> Risks: Izklausās dzirdēts | L4: =tabula!L4 -> 2010-ie | M4: =tabula!M4 -> Kas kopīgs? | N4: =tabula!N4 -> 2020-ie
E5: =tabula!E5 -> 150 | F5: =tabula!F5 -> 150 | G5: =tabula!G5 -> 204 | H5: =tabula!H5 -> 150 | I5: 175 | J5: =tabula!J5 -> 150 | K5: =tabula!K5 -> 120 | L5: =tabula!L5 -> 150 | M5: =tabula!M5 -> 180 | N5: =tabula!N5 -> 150 | O5: =tabula!O5 -> 1554
D6: =tabula!D6 -> Vidējie rādītāji | E6: =tabula!E6 -> 71.4 | F6: =tabula!F6 -> 69.5 | G6: =tabula!G6 -> 107.4 | H6: =tabula!H6 -> 57.1 | I6: =tabula!I6 -> 82.9 | J6: =tabula!J6 -> 100.4 | K6: =tabula!K6 -> 46.2 | L6: =tabula!L6 -> 69.8 | M6: =tabula!M6 -> 92.5 | N6: =tabula!N6 -> 62.5 | O6: =tabula!O6 -> 759.7
B7: 1 | C7: =tabula!C7 -> 1 | D7: =tabula!D7 -> Labvēlīgais TOPs | E7: =tabula!E7 -> 107 | F7: =tabula!F7 -> 142 | G7: =tabula!G7 -> 115 | H7: =tabula!H7 -> 149 | I7: =tabula!I7 -> 111 | J7: =tabula!J7 -> 131 | K7: =tabula!K7 -> 79 | L7: =tabula!L7 -> 98 | M7: =tabula!M7 -> 140 | N7: =tabula!N7 -> 131 | O7: =tabula!O7 -> 1203 | P7: =tabula!P7 -> 07 min. 43,608 | Q7: =tabula!Q7 -> 63 | R7: =tabula!R7 -> 07,359 sek.
B8: 1 | C8: =tabula!C8 -> 2 | D8: =tabula!D8 -> BraveDucks | E8: =tabula!E8 -> 96 | F8: =tabula!F8 -> 132 | G8: =tabula!G8 -> 101 | H8: =tabula!H8 -> 110 | I8: =tabula!I8 -> 109 | J8: =tabula!J8 -> 90 | K8: =tabula!K8 -> 73 | L8: =tabula!L8 -> 108 | M8: =tabula!M8 -> 169 | N8: =tabula!N8 -> 131 | O8: =tabula!O8 -> 1119 | P8: =tabula!P8 -> 05 min. 15,994 | Q8: =tabula!Q8 -> 56 | R8: =tabula!R8 -> 05,643 sek.
B9: 3 | C9: =tabula!C9 -> 3 | D9: =tabula!D9 -> Terase | E9: =tabula!E9 -> 94 | F9: =tabula!F9 -> 133 | G9: =tabula!G9 -> 131 | H9: =tabula!H9 -> 98 | I9: =tabula!I9 -> 103 | J9: =tabula!J9 -> 136 | K9: =tabula!K9 -> 73 | L9: =tabula!L9 -> 91 | M9: =tabula!M9 -> 147 | N9: =tabula!N9 -> 105 | O9: =tabula!O9 -> 1111 | P9: =tabula!P9 -> 07 min. 41,221 | Q9: =tabula!Q9 -> 60 | R9: =tabula!R9 -> 07,687 sek.
B10: 1 | C10: =tabula!C10 -> 4 | D10: =tabula!D10 -> Rainisskrienviens | E10: =tabula!E10 -> 98 | F10: =tabula!F10 -> 61 | G10: =tabula!G10 -> 182 | H10: =tabula!H10 -> 138 | I10: =tabula!I10 -> 112 | J10: =tabula!J10 -> 86 | K10: =tabula!K10 -> 101 | L10: =tabula!L10 -> 104 | M10: =tabula!M10 -> 100 | N10: =tabula!N10 -> 123 | O10: =tabula!O10 -> 1105 | P10: =tabula!P10 -> 04 min. 46,864 | Q10: =tabula!Q10 -> 55 | R10: =tabula!R10 -> 05,216 sek.
B11: 3 | C11: =tabula!C11 -> 5 | D11: =tabula!D11 -> MELDRI | E11: =tabula!E11 -> 96 | F11: =tabula!F11 -> 112 | G11: =tabula!G11 -> 133 | H11: =tabula!H11 -> 87 | I11: =tabula!I11 -> 103 | J11: =tabula!J11 -> 124 | K11: =tabula!K11 -> 73 | L11: =tabula!L11 -> 92 | M11: =tabula!M11 -> 156 | N11: =tabula!N11 -> 120 | O11: =tabula!O11 -> 1096 | P11: =tabula!P11 -> 07 min. 18,505 | Q11: =tabula!Q11 -> 59 | R11: =tabula!R11 -> 07,432 sek.
B12: 1 | C12: =tabula!C12 -> 6 | D12: =tabula!D12 -> Vilciņi | E12: =tabula!E12 -> 92 | F12: =tabula!F12 -> 87 | G12: =tabula!G12 -> 156 | H12: =tabula!H12 -> 84 | I12: =tabula!I12 -> 93 | J12: =tabula!J12 -> 122 | K12: =tabula!K12 -> 88 | L12: =tabula!L12 -> 100 | M12: =tabula!M12 -> 130 | N12: =tabula!N12 -> 129 | O12: =tabula!O12 -> 1081 | P12: =tabula!P12 -> 09 min. 20,982 | Q12: =tabula!Q12 -> 61 | R12: =tabula!R12 -> 09,196 sek.
B13: 1 | C13: =tabula!C13 -> 7 | D13: =tabula!D13 -> nezinu | E13: =tabula!E13 -> 91 | F13: =tabula!F13 -> 104 | G13: =tabula!G13 -> 144 | H13: =tabula!H13 -> 89 | I13: =tabula!I13 -> 108 | J13: =tabula!J13 -> 129 | K13: =tabula!K13 -> 49 | L13: =tabula!L13 -> 103 | M13: =tabula!M13 -> 146 | N13: =tabula!N13 -> 113 | O13: =tabula!O13 -> 1076 | P13: =tabula!P13 -> 07 min. 46,067 | Q13: =tabula!Q13 -> 59 | R13: =tabula!R13 -> 07,899 sek.
B14: 2 | C14: =tabula!C14 -> 8 | D14: =tabula!D14 -> Bunkurs_13 | E14: =tabula!E14 -> 65 | F14: =tabula!F14 -> 116 | G14: =tabula!G14 -> 152 | H14: =tabula!H14 -> 100 | I14: =tabula!I14 -> 102 | J14: =tabula!J14 -> 138 | K14: =tabula!K14 -> 76 | L14: =tabula!L14 -> 87 | M14: =tabula!M14 -> 124 | N14: =tabula!N14 -> 79 | O14: =tabula!O14 -> 1039 | P14: =tabula!P14 -> 06 min. 16,146 | Q14: =tabula!Q14 -> 55 | R14: =tabula!R14 -> 06,839 sek.
B15: 3 | C15: =tabula!C15 -> 9 | D15: =tabula!D15 -> KĻAVINSKI | E15: =tabula!E15 -> 94 | F15: =tabula!F15 -> 99 | G15: =tabula!G15 -> 141 | H15: =tabula!H15 -> 92 | I15: =tabula!I15 -> 82 | J15: =tabula!J15 -> 133 | K15: =tabula!K15 -> 75 | L15: =tabula!L15 -> 94 | M15: =tabula!M15 -> 133 | N15: =tabula!N15 -> 94 | O15: =tabula!O15 -> 1037 | P15: =tabula!P15 -> 06 min. 56,207 | Q15: =tabula!Q15 -> 56 | R15: =tabula!R15 -> 07,432 sek.
B16: 2 | C16: =tabula!C16 -> 10 | D16: =tabula!D16 -> Bagete | E16: =tabula!E16 -> 96 | F16: =tabula!F16 -> 85 | G16: =tabula!G16 -> 157 | H16: =tabula!H16 -> 80 | I16: =tabula!I16 -> 92 | J16: =tabula!J16 -> 134 | K16: =tabula!K16 -> 46 | L16: =tabula!L16 -> 110 | M16: =tabula!M16 -> 135 | N16: =tabula!N16 -> 96 | O16: =tabula!O16 -> 1031 | P16: =tabula!P16 -> 05 min. 40,977 | Q16: =tabula!Q16 -> 54 | R16: =tabula!R16 -> 06,314 sek.
B17: 2 | C17: =tabula!C17 -> 11 | D17: =tabula!D17 -> Tītara giross | E17: =tabula!E17 -> 94 | F17: =tabula!F17 -> 85 | G17: =tabula!G17 -> 128 | H17: =tabula!H17 -> 59 | I17: =tabula!I17 -> 107 | J17: =tabula!J17 -> 135 | K17: =tabula!K17 -> 67 | L17: =tabula!L17 -> 117 | M17: =tabula!M17 -> 155 | N17: =tabula!N17 -> 84 | O17: =tabula!O17 -> 1031 | P17: =tabula!P17 -> 07 min. 33,276 | Q17: =tabula!Q17 -> 56 | R17: =tabula!R17 -> 08,094 sek.
B18: 2 | C18: =tabula!C18 -> 12 | D18: =tabula!D18 -> PAGASTMĀJA | E18: =tabula!E18 -> 104 | F18: =tabula!F18 -> 110 | G18: =tabula!G18 -> 101 | H18: =tabula!H18 -> 93 | I18: =tabula!I18 -> 111 | J18: =tabula!J18 -> 137 | K18: =tabula!K18 -> 12 | L18: =tabula!L18 -> 98 | M18: =tabula!M18 -> 128 | N18: =tabula!N18 -> 129 | O18: =tabula!O18 -> 1023 | P18: =tabula!P18 -> 06 min. 08,914 | Q18: =tabula!Q18 -> 54 | R18: =tabula!R18 -> 06,832 sek.
B19: 3 | C19: =tabula!C19 -> 13 | D19: =tabula!D19 -> Madride | E19: =tabula!E19 -> 103 | F19: =tabula!F19 -> 93 | G19: =tabula!G19 -> 169 | H19: =tabula!H19 -> 82 | I19: =tabula!I19 -> 96 | J19: =tabula!J19 -> 134 | K19: =tabula!K19 -> 50 | L19: =tabula!L19 -> 78 | M19: =tabula!M19 -> 160 | N19: =tabula!N19 -> 57 | O19: =tabula!O19 -> 1022 | P19: =tabula!P19 -> 06 min. 25,113 | Q19: =tabula!Q19 -> 55 | R19: =tabula!R19 -> 07,002 sek.
B20: 1 | C20: =tabula!C20 -> 14 | D20: =tabula!D20 -> Bandītu perēklis | E20: =tabula!E20 -> 75 | F20: =tabula!F20 -> 62 | G20: =tabula!G20 -> 141 | H20: =tabula!H20 -> 56 | I20: =tabula!I20 -> 102 | J20: =tabula!J20 -> 115 | K20: =tabula!K20 -> 106 | L20: =tabula!L20 -> 109 | M20: =tabula!M20 -> 117 | N20: =tabula!N20 -> 129 | O20: =tabula!O20 -> 1012 | P20: =tabula!P20 -> 05 min. 34,587 | Q20: =tabula!Q20 -> 53 | R20: =tabula!R20 -> 06,313 sek.
B21: 3 | C21: =tabula!C21 -> 15 | D21: =tabula!D21 -> SauleLecBružiksGatavojasIsBack | E21: =tabula!E21 -> 113 | F21: =tabula!F21 -> 86 | G21: =tabula!G21 -> 145 | H21: =tabula!H21 -> 104 | I21: =tabula!I21 -> 130 | J21: =tabula!J21 -> 138 | K21: =tabula!K21 -> 31 | L21: =tabula!L21 -> 54 | M21: =tabula!M21 -> 109 | N21: =tabula!N21 -> 98 | O21: =tabula!O21 -> 1008 | P21: =tabula!P21 -> 05 min. 25,843 | Q21: =tabula!Q21 -> 52 | R21: =tabula!R21 -> 06,266 sek.
B22: 3 | C22: =tabula!C22 -> 16 | D22: =tabula!D22 -> Jaunanglijas gliemju zupa | E22: =tabula!E22 -> 117 | F22: =tabula!F22 -> 116 | G22: =tabula!G22 -> 120 | H22: =tabula!H22 -> 86 | I22: =tabula!I22 -> 102 | J22: =tabula!J22 -> 114 | K22: =tabula!K22 -> 23 | L22: =tabula!L22 -> 123 | M22: =tabula!M22 -> 158 | N22: =tabula!N22 -> 45 | O22: =tabula!O22 -> 1004 | P22: =tabula!P22 -> 06 min. 20,977 | Q22: =tabula!Q22 -> 53 | R22: =tabula!R22 -> 07,188 sek.
B23: 3 | C23: =tabula!C23 -> 17 | D23: =tabula!D23 -> Sigulda ierauj! | E23: =tabula!E23 -> 116 | F23: =tabula!F23 -> 86 | G23: =tabula!G23 -> 125 | H23: =tabula!H23 -> 107 | I23: =tabula!I23 -> 65 | J23: =tabula!J23 -> 128 | K23: =tabula!K23 -> 81 | L23: =tabula!L23 -> 108 | M23: =tabula!M23 -> 70 | N23: =tabula!N23 -> 118 | O23: =tabula!O23 -> 1004 | P23: =tabula!P23 -> 08 min. 47,814 | Q23: =tabula!Q23 -> 57 | R23: =tabula!R23 -> 09,260 sek.
B24: 1 | C24: =tabula!C24 -> 18 | D24: =tabula!D24 -> Inspektors IEPŪTNIS | E24: =tabula!E24 -> 108 | F24: =tabula!F24 -> 126 | G24: =tabula!G24 -> 89 | H24: =tabula!H24 -> 82 | I24: =tabula!I24 -> 62 | J24: =tabula!J24 -> 128 | K24: =tabula!K24 -> 68 | L24: =tabula!L24 -> 99 | M24: =tabula!M24 -> 115 | N24: =tabula!N24 -> 121 | O24: =tabula!O24 -> 998 | P24: =tabula!P24 -> 07 min. 05,892 | Q24: =tabula!Q24 -> 54 | R24: =tabula!R24 -> 07,887 sek.
B25: 1 | C25: =tabula!C25 -> 19 | D25: =tabula!D25 -> DJIVCREC | E25: =tabula!E25 -> 90 | F25: =tabula!F25 -> 129 | G25: =tabula!G25 -> 104 | H25: =tabula!H25 -> 73 | I25: =tabula!I25 -> 112 | J25: =tabula!J25 -> 109 | K25: =tabula!K25 -> 10 | L25: =tabula!L25 -> 124 | M25: =tabula!M25 -> 138 | N25: =tabula!N25 -> 108 | O25: =tabula!O25 -> 997 | P25: =tabula!P25 -> 07 min. 02,456 | Q25: =tabula!Q25 -> 55 | R25: =tabula!R25 -> 07,681 sek.
B26: 3 | C26: =tabula!C26 -> 20 | D26: =tabula!D26 -> Bugatti 21023 | E26: =tabula!E26 -> 107 | F26: =tabula!F26 -> 84 | G26: =tabula!G26 -> 154 | H26: =tabula!H26 -> 35 | I26: =tabula!I26 -> 93 | J26: =tabula!J26 -> 125 | K26: =tabula!K26 -> 84 | L26: =tabula!L26 -> 102 | M26: =tabula!M26 -> 111 | N26: =tabula!N26 -> 94 | O26: =tabula!O26 -> 989 | P26: =tabula!P26 -> 07 min. 11,521 | Q26: =tabula!Q26 -> 55 | R26: =tabula!R26 -> 07,846 sek.
C27: =tabula!C27 -> 21 | D27: =tabula!D27 -> MIKO | E27: =tabula!E27 -> 80 | F27: =tabula!F27 -> 111 | G27: =tabula!G27 -> 103 | H27: =tabula!H27 -> 110 | I27: =tabula!I27 -> 111 | J27: =tabula!J27 -> 122 | K27: =tabula!K27 -> 66 | L27: =tabula!L27 -> 95 | M27: =tabula!M27 -> 104 | N27: =tabula!N27 -> 86 | O27: =tabula!O27 -> 988 | P27: =tabula!P27 -> 08 min. 32,969 | Q27: =tabula!Q27 -> 55 | R27: =tabula!R27 -> 09,327 sek.
C28: =tabula!C28 -> 22 | D28: =tabula!D28 -> Atbildīgais redaktors | E28: =tabula!E28 -> 96 | F28: =tabula!F28 -> 91 | G28: =tabula!G28 -> 167 | H28: =tabula!H28 -> 79 | I28: =tabula!I28 -> 90 | J28: =tabula!J28 -> 135 | K28: =tabula!K28 -> 53 | L28: =tabula!L28 -> 77 | M28: =tabula!M28 -> 134 | N28: =tabula!N28 -> 65 | O28: =tabula!O28 -> 987 | P28: =tabula!P28 -> 06 min. 08,515 | Q28: =tabula!Q28 -> 53 | R28: =tabula!R28 -> 06,953 sek.
C29: =tabula!C29 -> 23 | D29: =tabula!D29 -> Pelmenis Amerikā | E29: =tabula!E29 -> 136 | F29: =tabula!F29 -> 57 | G29: =tabula!G29 -> 159 | H29: =tabula!H29 -> 94 | I29: =tabula!I29 -> 116 | J29: =tabula!J29 -> 65 | K29: =tabula!K29 -> 58 | L29: =tabula!L29 -> 96 | M29: =tabula!M29 -> 122 | N29: =tabula!N29 -> 80 | O29: =tabula!O29 -> 983 | P29: =tabula!P29 -> 04 min. 13,804 | Q29: =tabula!Q29 -> 49 | R29: =tabula!R29 -> 05,180 sek.
C30: =tabula!C30 -> 24 | D30: =tabula!D30 -> ***Mēs-foršie brīvprātīgie*** | E30: =tabula!E30 -> 61 | F30: =tabula!F30 -> 131 | G30: =tabula!G30 -> 108 | H30: =tabula!H30 -> 65 | I30: =tabula!I30 -> 87 | J30: =tabula!J30 -> 108 | K30: =tabula!K30 -> 79 | L30: =tabula!L30 -> 104 | M30: =tabula!M30 -> 105 | N30: =tabula!N30 -> 115 | O30: =tabula!O30 -> 963 | P30: =tabula!P30 -> 07 min. 41,221 | Q30: =tabula!Q30 -> 53 | R30: =tabula!R30 -> 08,702 sek.
C31: =tabula!C31 -> 25 | D31: =tabula!D31 -> Zvirbulis122 | E31: =tabula!E31 -> 77 | F31: =tabula!F31 -> 129 | G31: =tabula!G31 -> 121 | H31: =tabula!H31 -> 55 | I31: =tabula!I31 -> 65 | J31: =tabula!J31 -> 122 | K31: =tabula!K31 -> 84 | L31: =tabula!L31 -> 85 | M31: =tabula!M31 -> 105 | N31: =tabula!N31 -> 120 | O31: =tabula!O31 -> 963 | P31: =tabula!P31 -> 07 min. 57,521 | Q31: =tabula!Q31 -> 54 | R31: =tabula!R31 -> 08,843 sek.
C32: =tabula!C32 -> 26 | D32: =tabula!D32 -> Klieši & Draugi | E32: =tabula!E32 -> 93 | F32: =tabula!F32 -> 78 | G32: =tabula!G32 -> 111 | H32: =tabula!H32 -> 82 | I32: =tabula!I32 -> 89 | J32: =tabula!J32 -> 134 | K32: =tabula!K32 -> 32 | L32: =tabula!L32 -> 119 | M32: =tabula!M32 -> 111 | N32: =tabula!N32 -> 99 | O32: =tabula!O32 -> 948 | P32: =tabula!P32 -> 07 min. 08,873 | Q32: =tabula!Q32 -> 53 | R32: =tabula!R32 -> 08,092 sek.
C33: =tabula!C33 -> 27 | D33: =tabula!D33 -> DUNDUKI | E33: =tabula!E33 -> 102 | F33: =tabula!F33 -> 82 | G33: =tabula!G33 -> 79 | H33: =tabula!H33 -> 73 | I33: =tabula!I33 -> 101 | J33: =tabula!J33 -> 111 | K33: =tabula!K33 -> 88 | L33: =tabula!L33 -> 100 | M33: =tabula!M33 -> 117 | N33: =tabula!N33 -> 92 | O33: =tabula!O33 -> 945 | P33: =tabula!P33 -> 10 min. 52,812 | Q33: =tabula!Q33 -> 58 | R33: =tabula!R33 -> 11,255 sek.
C34: =tabula!C34 -> 28 | D34: =tabula!D34 -> Labākie kaimiņi | E34: =tabula!E34 -> 87 | F34: =tabula!F34 -> 141 | G34: =tabula!G34 -> 125 | H34: =tabula!H34 -> 89 | I34: =tabula!I34 -> 108 | J34: =tabula!J34 -> 129 | K34: =tabula!K34 -> 81 | L34: =tabula!L34 -> 78 | M34: =tabula!M34 -> 67 | N34: =tabula!N34 -> 30 | O34: =tabula!O34 -> 935 | P34: =tabula!P34 -> 06 min. 11,100 | Q34: =tabula!Q34 -> 50 | R34: =tabula!R34 -> 07,422 sek.
C35: =tabula!C35 -> 29 | D35: =tabula!D35 -> Belinda | E35: =tabula!E35 -> 103 | F35: =tabula!F35 -> 66 | G35: =tabula!G35 -> 150 | H35: =tabula!H35 -> 120 | I35: =tabula!I35 -> 90 | J35: =tabula!J35 -> 118 | K35: =tabula!K35 -> 45 | L35: =tabula!L35 -> 75 | M35: =tabula!M35 -> 109 | N35: =tabula!N35 -> 44 | O35: =tabula!O35 -> 920 | P35: =tabula!P35 -> 05 min. 03,604 | Q35: =tabula!Q35 -> 48 | R35: =tabula!R35 -> 06,325 sek.
C36: =tabula!C36 -> 30 | D36: =tabula!D36 -> 44593 | E36: =tabula!E36 -> 113 | F36: =tabula!F36 -> 99 | G36: =tabula!G36 -> 101 | H36: =tabula!H36 -> 45 | I36: =tabula!I36 -> 97 | J36: =tabula!J36 -> 121 | K36: =tabula!K36 -> 77 | L36: =tabula!L36 -> 55 | M36: =tabula!M36 -> 105 | N36: =tabula!N36 -> 99 | O36: =tabula!O36 -> 912 | P36: =tabula!P36 -> 08 min. 36,038 | Q36: =tabula!Q36 -> 53 | R36: =tabula!R36 -> 09,737 sek.
C37: =tabula!C37 -> 31 | D37: =tabula!D37 -> VECIE KAPI | E37: =tabula!E37 -> 99 | F37: =tabula!F37 -> 110 | G37: =tabula!G37 -> 66 | H37: =tabula!H37 -> 42 | I37: =tabula!I37 -> 85 | J37: =tabula!J37 -> 135 | K37: =tabula!K37 -> 53 | L37: =tabula!L37 -> 104 | M37: =tabula!M37 -> 129 | N37: =tabula!N37 -> 84 | O37: =tabula!O37 -> 907 | P37: =tabula!P37 -> 07 min. 01,211 | Q37: =tabula!Q37 -> 50 | R37: =tabula!R37 -> 08,424 sek.
C38: =tabula!C38 -> 32 | D38: =tabula!D38 -> Salaspilieši | E38: =tabula!E38 -> 64 | F38: =tabula!F38 -> 77 | G38: =tabula!G38 -> 83 | H38: =tabula!H38 -> 77 | I38: =tabula!I38 -> 109 | J38: =tabula!J38 -> 120 | K38: =tabula!K38 -> 67 | L38: =tabula!L38 -> 85 | M38: =tabula!M38 -> 112 | N38: =tabula!N38 -> 111 | O38: =tabula!O38 -> 905 | P38: =tabula!P38 -> 09 min. 22,249 | Q38: =tabula!Q38 -> 53 | R38: =tabula!R38 -> 10,608 sek.
C39: =tabula!C39 -> 33 | D39: =tabula!D39 -> Kā i, tā i | E39: =tabula!E39 -> 84 | F39: =tabula!F39 -> 102 | G39: =tabula!G39 -> 157 | H39: =tabula!H39 -> 45 | I39: =tabula!I39 -> 88 | J39: =tabula!J39 -> 96 | K39: =tabula!K39 -> 41 | L39: =tabula!L39 -> 80 | M39: =tabula!M39 -> 124 | N39: =tabula!N39 -> 87 | O39: =tabula!O39 -> 904 | P39: =tabula!P39 -> 08 min. 25,020 | Q39: =tabula!Q39 -> 53 | R39: =tabula!R39 -> 09,529 sek.
C40: =tabula!C40 -> 34 | D40: =tabula!D40 -> Eltons Kleptons | E40: =tabula!E40 -> 97 | F40: =tabula!F40 -> 104 | G40: =tabula!G40 -> 93 | H40: =tabula!H40 -> 65 | I40: =tabula!I40 -> 121 | J40: =tabula!J40 -> 115 | K40: =tabula!K40 -> 91 | L40: =tabula!L40 -> 62 | M40: =tabula!M40 -> 136 | N40: =tabula!N40 -> 16 | O40: =tabula!O40 -> 900 | P40: =tabula!P40 -> 05 min. 43,674 | Q40: =tabula!Q40 -> 47 | R40: =tabula!R40 -> 07,312 sek.
C41: =tabula!C41 -> 35 | D41: =tabula!D41 -> Patrioti | E41: =tabula!E41 -> 88 | F41: =tabula!F41 -> 98 | G41: =tabula!G41 -> 109 | H41: =tabula!H41 -> 83 | I41: =tabula!I41 -> 81 | J41: =tabula!J41 -> 130 | K41: =tabula!K41 -> 27 | L41: =tabula!L41 -> 81 | M41: =tabula!M41 -> 95 | N41: =tabula!N41 -> 105 | O41: =tabula!O41 -> 897 | P41: =tabula!P41 -> 08 min. 05,183 | Q41: =tabula!Q41 -> 52 | R41: =tabula!R41 -> 09,330 sek.
C42: =tabula!C42 -> 36 | D42: =tabula!D42 -> KAZHAMACK | E42: =tabula!E42 -> 106 | F42: =tabula!F42 -> 47 | G42: =tabula!G42 -> 89 | H42: =tabula!H42 -> 111 | I42: =tabula!I42 -> 113 | J42: =tabula!J42 -> 139 | K42: =tabula!K42 -> 80 | L42: =tabula!L42 -> 71 | M42: =tabula!M42 -> 107 | N42: =tabula!N42 -> 31 | O42: =tabula!O42 -> 894 | P42: =tabula!P42 -> 06 min. 24,853 | Q42: =tabula!Q42 -> 48 | R42: =tabula!R42 -> 08,018 sek.
C43: =tabula!C43 -> 37 | D43: =tabula!D43 -> Skaidrītes radio 2 | E43: =tabula!E43 -> 105 | F43: =tabula!F43 -> 59 | G43: =tabula!G43 -> 136 | H43: =tabula!H43 -> 47 | I43: =tabula!I43 -> 103 | J43: =tabula!J43 -> 136 | K43: =tabula!K43 -> 71 | L43: =tabula!L43 -> 68 | M43: =tabula!M43 -> 91 | N43: =tabula!N43 -> 56 | O43: =tabula!O43 -> 872 | P43: =tabula!P43 -> 05 min. 26,360 | Q43: =tabula!Q43 -> 47 | R43: =tabula!R43 -> 06,944 sek.
C44: =tabula!C44 -> 38 | D44: =tabula!D44 -> Pilskalni | E44: =tabula!E44 -> 112 | F44: =tabula!F44 -> 38 | G44: =tabula!G44 -> 123 | H44: =tabula!H44 -> 69 | I44: =tabula!I44 -> 123 | J44: =tabula!J44 -> 131 | K44: =tabula!K44 -> 49 | L44: =tabula!L44 -> 59 | M44: =tabula!M44 -> 131 | N44: =tabula!N44 -> 36 | O44: =tabula!O44 -> 871 | P44: =tabula!P44 -> 05 min. 24,896 | Q44: =tabula!Q44 -> 46 | R44: =tabula!R44 -> 07,063 sek.
C45: =tabula!C45 -> 39 | D45: =tabula!D45 -> Hugo | E45: =tabula!E45 -> 76 | F45: =tabula!F45 -> 60 | G45: =tabula!G45 -> 149 | H45: =tabula!H45 -> 59 | I45: =tabula!I45 -> 80 | J45: =tabula!J45 -> 110 | K45: =tabula!K45 -> 13 | L45: =tabula!L45 -> 97 | M45: =tabula!M45 -> 117 | N45: =tabula!N45 -> 109 | O45: =tabula!O45 -> 870 | P45: =tabula!P45 -> 08 min. 12,675 | Q45: =tabula!Q45 -> 51 | R45: =tabula!R45 -> 09,660 sek.
C46: =tabula!C46 -> 40 | D46: =tabula!D46 -> Matīss un Signija | E46: =tabula!E46 -> 102 | F46: =tabula!F46 -> 93 | G46: =tabula!G46 -> 129 | H46: =tabula!H46 -> 77 | I46: =tabula!I46 -> 61 | J46: =tabula!J46 -> 128 | K46: =tabula!K46 -> 17 | L46: =tabula!L46 -> 126 | M46: =tabula!M46 -> 55 | N46: =tabula!N46 -> 76 | O46: =tabula!O46 -> 864 | P46: =tabula!P46 -> 08 min. 38,558 | Q46: =tabula!Q46 -> 52 | R46: =tabula!R46 -> 09,972 sek.
C47: =tabula!C47 -> 41 | D47: =tabula!D47 -> Samtudās | E47: =tabula!E47 -> 61 | F47: =tabula!F47 -> 104 | G47: =tabula!G47 -> 115 | H47: =tabula!H47 -> 56 | I47: =tabula!I47 -> 83 | J47: =tabula!J47 -> 102 | K47: =tabula!K47 -> 78 | L47: =tabula!L47 -> 86 | M47: =tabula!M47 -> 92 | N47: =tabula!N47 -> 86 | O47: =tabula!O47 -> 863 | P47: =tabula!P47 -> 08 min. 22,725 | Q47: =tabula!Q47 -> 51 | R47: =tabula!R47 -> 09,857 sek.
C48: =tabula!C48 -> 42 | D48: =tabula!D48 -> BSK | E48: =tabula!E48 -> 81 | F48: =tabula!F48 -> 40 | G48: =tabula!G48 -> 116 | H48: =tabula!H48 -> 58 | I48: =tabula!I48 -> 110 | J48: =tabula!J48 -> 122 | K48: =tabula!K48 -> 44 | L48: =tabula!L48 -> 89 | M48: =tabula!M48 -> 92 | N48: =tabula!N48 -> 109 | O48: =tabula!O48 -> 861 | P48: =tabula!P48 -> 06 min. 39,624 | Q48: =tabula!Q48 -> 49 | R48: =tabula!R48 -> 08,156 sek.
C49: =tabula!C49 -> 43 | D49: =tabula!D49 -> Prāta Vēders | E49: =tabula!E49 -> 79 | F49: =tabula!F49 -> 93 | G49: =tabula!G49 -> 162 | H49: =tabula!H49 -> 36 | I49: =tabula!I49 -> 71 | J49: =tabula!J49 -> 87 | K49: =tabula!K49 -> 71 | L49: =tabula!L49 -> 85 | M49: =tabula!M49 -> 129 | N49: =tabula!N49 -> 31 | O49: =tabula!O49 -> 844 | P49: =tabula!P49 -> 08 min. 13,540 | Q49: =tabula!Q49 -> 50 | R49: =tabula!R49 -> 09,871 sek.
C50: =tabula!C50 -> 44 | D50: =tabula!D50 -> Galvas blīve | E50: =tabula!E50 -> 67 | F50: =tabula!F50 -> 61 | G50: =tabula!G50 -> 105 | H50: =tabula!H50 -> 71 | I50: =tabula!I50 -> 104 | J50: =tabula!J50 -> 126 | K50: =tabula!K50 -> 28 | L50: =tabula!L50 -> 86 | M50: =tabula!M50 -> 131 | N50: =tabula!N50 -> 50 | O50: =tabula!O50 -> 829 | P50: =tabula!P50 -> 06 min. 49,217 | Q50: =tabula!Q50 -> 47 | R50: =tabula!R50 -> 08,707 sek.
C51: =tabula!C51 -> 45 | D51: =tabula!D51 -> Ātrais pirts variants | E51: =tabula!E51 -> 103 | F51: =tabula!F51 -> 81 | G51: =tabula!G51 -> 110 | H51: =tabula!H51 -> 0 | I51: =tabula!I51 -> 55 | J51: =tabula!J51 -> 75 | K51: =tabula!K51 -> 85 | L51: =tabula!L51 -> 101 | M51: =tabula!M51 -> 131 | N51: =tabula!N51 -> 77 | O51: =tabula!O51 -> 818 | P51: =tabula!P51 -> 06 min. 22,028 | Q51: =tabula!Q51 -> 46 | R51: =tabula!R51 -> 08,305 sek.
C52: =tabula!C52 -> 46 | D52: =tabula!D52 -> Kaspars | E52: =tabula!E52 -> 88 | F52: =tabula!F52 -> 61 | G52: =tabula!G52 -> 118 | H52: =tabula!H52 -> 62 | I52: =tabula!I52 -> 87 | J52: =tabula!J52 -> 133 | K52: =tabula!K52 -> 60 | L52: =tabula!L52 -> 79 | M52: =tabula!M52 -> 89 | N52: =tabula!N52 -> 37 | O52: =tabula!O52 -> 814 | P52: =tabula!P52 -> 06 min. 12,887 | Q52: =tabula!Q52 -> 45 | R52: =tabula!R52 -> 08,286 sek.
C53: =tabula!C53 -> 47 | D53: =tabula!D53 -> Jautrais Jenots Ješka | E53: =tabula!E53 -> 103 | F53: =tabula!F53 -> 34 | G53: =tabula!G53 -> 119 | H53: =tabula!H53 -> 84 | I53: =tabula!I53 -> 97 | J53: =tabula!J53 -> 137 | K53: =tabula!K53 -> 93 | L53: =tabula!L53 -> 63 | M53: =tabula!M53 -> 57 | N53: =tabula!N53 -> 22 | O53: =tabula!O53 -> 809 | P53: =tabula!P53 -> 07 min. 39,650 | Q53: =tabula!Q53 -> 47 | R53: =tabula!R53 -> 09,780 sek.
C54: =tabula!C54 -> 48 | D54: =tabula!D54 -> kD | E54: =tabula!E54 -> 71 | F54: =tabula!F54 -> 57 | G54: =tabula!G54 -> 94 | H54: =tabula!H54 -> 79 | I54: =tabula!I54 -> 106 | J54: =tabula!J54 -> 143 | K54: =tabula!K54 -> 39 | L54: =tabula!L54 -> 82 | M54: =tabula!M54 -> 91 | N54: =tabula!N54 -> 43 | O54: =tabula!O54 -> 805 | P54: =tabula!P54 -> 06 min. 28,942 | Q54: =tabula!Q54 -> 45 | R54: =tabula!R54 -> 08,643 sek.
C55: =tabula!C55 -> 49 | D55: =tabula!D55 -> Krauklīt's sēž štābiņā | E55: =tabula!E55 -> 46 | F55: =tabula!F55 -> 43 | G55: =tabula!G55 -> 113 | H55: =tabula!H55 -> 48 | I55: =tabula!I55 -> 135 | J55: =tabula!J55 -> 118 | K55: =tabula!K55 -> 71 | L55: =tabula!L55 -> 85 | M55: =tabula!M55 -> 119 | N55: =tabula!N55 -> 21 | O55: =tabula!O55 -> 799 | P55: =tabula!P55 -> 04 min. 06,337 | Q55: =tabula!Q55 -> 41 | R55: =tabula!R55 -> 06,008 sek.
C56: =tabula!C56 -> 50 | D56: =tabula!D56 -> Ņiger&CO | E56: =tabula!E56 -> 67 | F56: =tabula!F56 -> 67 | G56: =tabula!G56 -> 89 | H56: =tabula!H56 -> 73 | I56: =tabula!I56 -> 70 | J56: =tabula!J56 -> 121 | K56: =tabula!K56 -> 61 | L56: =tabula!L56 -> 67 | M56: =tabula!M56 -> 83 | N56: =tabula!N56 -> 101 | O56: =tabula!O56 -> 799 | P56: =tabula!P56 -> 10 min. 24,168 | Q56: =tabula!Q56 -> 52 | R56: =tabula!R56 -> 12,003 sek.
C58: LIELDRAUGS ATBALSTĪTĀJI

Sheet 51-100
C2: =tabula!C2 -> "Latviešu mūzikas viktorīna" (tiešsaistē / vebinārā) | 2024.gada 29.novembris
B3: Grupa | C3: =tabula!C3 -> # | D3: =tabula!D3 -> Dalībnieks | Raunds | Tēma | Max punkti raundā (bez bonusiem) | E3: =tabula!E3 -> 1 | F3: =tabula!F3 -> 2 | G3: =tabula!G3 -> 3 | H3: =tabula!H3 -> 4 | I3: =tabula!I3 -> 5 | J3: =tabula!J3 -> 6 | K3: =tabula!K3 -> 7 | L3: =tabula!L3 -> 8 | M3: =tabula!M3 -> 9 | N3: =tabula!N3 -> 10 | O3: =tabula!O3 -> KOPĀ | P3: =tabula!P3 -> Laiks kopā uz pareizajām atbildēm | Q3: =tabula!Q3 -> Pareizās atbildes (max 67) | R3: =tabula!R3 -> Vid.laiks uz 1 pareizo atb.
E4: =tabula!E4 -> Pavediens: Skan pavisam citādāk | F4: =tabula!F4 -> 80-ie | G4: =tabula!G4 -> Ekspresis | H4: =tabula!H4 -> 90-ie | I4: =tabula!I4 -> Vizuālais | J4: =tabula!J4 -> 2000-ie | K4: =tabula!K4 -> Risks: Izklausās dzirdēts | L4: =tabula!L4 -> 2010-ie | M4: =tabula!M4 -> Kas kopīgs? | N4: =tabula!N4 -> 2020-ie
E5: =tabula!E5 -> 150 | F5: =tabula!F5 -> 150 | G5: =tabula!G5 -> 204 | H5: =tabula!H5 -> 150 | I5: 175 | J5: =tabula!J5 -> 150 | K5: =tabula!K5 -> 120 | L5: =tabula!L5 -> 150 | M5: =tabula!M5 -> 180 | N5: =tabula!N5 -> 150 | O5: =tabula!O5 -> 1554
D6: =tabula!D6 -> Vidējie rādītāji | E6: =tabula!E6 -> 71.4 | F6: =tabula!F6 -> 69.5 | G6: =tabula!G6 -> 107.4 | H6: =tabula!H6 -> 57.1 | I6: =tabula!I6 -> 82.9 | J6: =tabula!J6 -> 100.4 | K6: =tabula!K6 -> 46.2 | L6: =tabula!L6 -> 69.8 | M6: =tabula!M6 -> 92.5 | N6: =tabula!N6 -> 62.5 | O6: =tabula!O6 -> 759.7
B7: 1 | C7: 51 | D7: =tabula!D57 -> Mammunedziedi | E7: =tabula!E57 -> 48 | F7: =tabula!F57 -> 95 | G7: =tabula!G57 -> 118 | H7: =tabula!H57 -> 41 | I7: =tabula!I57 -> 68 | J7: =tabula!J57 -> 121 | K7: =tabula!K57 -> 64 | L7: =tabula!L57 -> 50 | M7: =tabula!M57 -> 110 | N7: =tabula!N57 -> 79 | O7: =tabula!O57 -> 794 | P7: =tabula!P57 -> 07 min. 53,909 | Q7: =tabula!Q57 -> 47 | R7: =tabula!R57 -> 10,083 sek.
B8: 1 | C8: 52 | D8: =tabula!D58 -> Guntars Klačs | E8: =tabula!E58 -> 87 | F8: =tabula!F58 -> 49 | G8: =tabula!G58 -> 98 | H8: =tabula!H58 -> 126 | I8: =tabula!I58 -> 94 | J8: =tabula!J58 -> 115 | K8: =tabula!K58 -> 7 | L8: =tabula!L58 -> 111 | M8: =tabula!M58 -> 86 | N8: =tabula!N58 -> 20 | O8: =tabula!O58 -> 793 | P8: =tabula!P58 -> 06 min. 11,247 | Q8: =tabula!Q58 -> 46 | R8: =tabula!R58 -> 08,071 sek.
B9: 3 | C9: 53 | D9: =tabula!D59 -> Jāni Drāzmani | E9: =tabula!E59 -> 74 | F9: =tabula!F59 -> 88 | G9: =tabula!G59 -> 118 | H9: =tabula!H59 -> 90 | I9: =tabula!I59 -> 107 | J9: =tabula!J59 -> 137 | K9: =tabula!K59 -> 38 | L9: =tabula!L59 -> 55 | M9: =tabula!M59 -> 42 | N9: =tabula!N59 -> 37 | O9: =tabula!O59 -> 786 | P9: =tabula!P59 -> 05 min. 00,509 | Q9: =tabula!Q59 -> 44 | R9: =tabula!R59 -> 06,830 sek.
B10: 1 | C10: 54 | D10: =tabula!D60 -> Kriptomafija | E10: =tabula!E60 -> 75 | F10: =tabula!F60 -> 67 | G10: =tabula!G60 -> 136 | H10: =tabula!H60 -> 60 | I10: =tabula!I60 -> 69 | J10: =tabula!J60 -> 107 | K10: =tabula!K60 -> 44 | L10: =tabula!L60 -> 57 | M10: =tabula!M60 -> 67 | N10: =tabula!N60 -> 100 | O10: =tabula!O60 -> 782 | P10: =tabula!P60 -> 07 min. 22,506 | Q10: =tabula!Q60 -> 46 | R10: =tabula!R60 -> 09,620 sek.
B11: 3 | C11: 55 | D11: =tabula!D61 -> Blondie grēki | E11: =tabula!E61 -> 80 | F11: =tabula!F61 -> 52 | G11: =tabula!G61 -> 96 | H11: =tabula!H61 -> 64 | I11: =tabula!I61 -> 108 | J11: =tabula!J61 -> 115 | K11: =tabula!K61 -> 23 | L11: =tabula!L61 -> 46 | M11: =tabula!M61 -> 106 | N11: =tabula!N61 -> 75 | O11: =tabula!O61 -> 765 | P11: =tabula!P61 -> 08 min. 51,717 | Q11: =tabula!Q61 -> 48 | R11: =tabula!R61 -> 11,077 sek.
B12: 1 | C12: 56 | D12: =tabula!D62 -> Rozā mices | E12: =tabula!E62 -> 83 | F12: =tabula!F62 -> 60 | G12: =tabula!G62 -> 109 | H12: =tabula!H62 -> 44 | I12: =tabula!I62 -> 72 | J12: =tabula!J62 -> 72 | K12: =tabula!K62 -> 62 | L12: =tabula!L62 -> 103 | M12: =tabula!M62 -> 124 | N12: =tabula!N62 -> 35 | O12: =tabula!O62 -> 764 | P12: =tabula!P62 -> 04 min. 28,391 | Q12: =tabula!Q62 -> 40 | R12: =tabula!R62 -> 06,710 sek.
C13: 57 | D13: =tabula!D63 -> Miglas rīts | E13: =tabula!E63 -> 109 | F13: =tabula!F63 -> 83 | G13: =tabula!G63 -> 123 | H13: =tabula!H63 -> 44 | I13: =tabula!I63 -> 41 | J13: =tabula!J63 -> 132 | K13: =tabula!K63 -> 45 | L13: =tabula!L63 -> 88 | M13: =tabula!M63 -> 97 | N13: =tabula!N63 -> 0 | O13: =tabula!O63 -> 762 | P13: =tabula!P63 -> 05 min. 15,257 | Q13: =tabula!Q63 -> 42 | R13: =tabula!R63 -> 07,506 sek.
C14: 58 | D14: =tabula!D64 -> Bīstamie knābīši | E14: =tabula!E64 -> 70 | F14: =tabula!F64 -> 52 | G14: =tabula!G64 -> 111 | H14: =tabula!H64 -> 81 | I14: =tabula!I64 -> 107 | J14: =tabula!J64 -> 106 | K14: =tabula!K64 -> 69 | L14: =tabula!L64 -> 39 | M14: =tabula!M64 -> 47 | N14: =tabula!N64 -> 80 | O14: =tabula!O64 -> 762 | P14: =tabula!P64 -> 06 min. 42,146 | Q14: =tabula!Q64 -> 44 | R14: =tabula!R64 -> 09,140 sek.
C15: 59 | D15: =tabula!D65 -> Vētra nāk | E15: =tabula!E65 -> 69 | F15: =tabula!F65 -> 57 | G15: =tabula!G65 -> 88 | H15: =tabula!H65 -> 77 | I15: =tabula!I65 -> 57 | J15: =tabula!J65 -> 100 | K15: =tabula!K65 -> 48 | L15: =tabula!L65 -> 92 | M15: =tabula!M65 -> 131 | N15: =tabula!N65 -> 42 | O15: =tabula!O65 -> 761 | P15: =tabula!P65 -> 09 min. 09,105 | Q15: =tabula!Q65 -> 48 | R15: =tabula!R65 -> 11,440 sek.
C16: 60 | D16: =tabula!D66 -> Stirniņas | E16: =tabula!E66 -> 44 | F16: =tabula!F66 -> 52 | G16: =tabula!G66 -> 71 | H16: =tabula!H66 -> 59 | I16: =tabula!I66 -> 85 | J16: =tabula!J66 -> 119 | K16: =tabula!K66 -> 48 | L16: =tabula!L66 -> 72 | M16: =tabula!M66 -> 83 | N16: =tabula!N66 -> 109 | O16: =tabula!O66 -> 742 | P16: =tabula!P66 -> 08 min. 40,342 | Q16: =tabula!Q66 -> 46 | R16: =tabula!R66 -> 11,312 sek.
C17: 61 | D17: =tabula!D67 -> Suituceļš Nejautā | E17: =tabula!E67 -> 75 | F17: =tabula!F67 -> 92 | G17: =tabula!G67 -> 111 | H17: =tabula!H67 -> 77 | I17: =tabula!I67 -> 84 | J17: =tabula!J67 -> 90 | K17: =tabula!K67 -> 36 | L17: =tabula!L67 -> 56 | M17: =tabula!M67 -> 83 | N17: =tabula!N67 -> 33 | O17: =tabula!O67 -> 737 | P17: =tabula!P67 -> 05 min. 15,928 | Q17: =tabula!Q67 -> 41 | R17: =tabula!R67 -> 07,706 sek.
C18: 62 | D18: =tabula!D68 -> Chocolata | E18: =tabula!E68 -> 70 | F18: =tabula!F68 -> 90 | G18: =tabula!G68 -> 89 | H18: =tabula!H68 -> 24 | I18: =tabula!I68 -> 91 | J18: =tabula!J68 -> 111 | K18: =tabula!K68 -> 84 | L18: =tabula!L68 -> 57 | M18: =tabula!M68 -> 96 | N18: =tabula!N68 -> 16 | O18: =tabula!O68 -> 728 | P18: =tabula!P68 -> 05 min. 51,263 | Q18: =tabula!Q68 -> 40 | R18: =tabula!R68 -> 08,782 sek.
C19: 63 | D19: =tabula!D69 -> stabulēni | E19: =tabula!E69 -> 35 | F19: =tabula!F69 -> 61 | G19: =tabula!G69 -> 82 | H19: =tabula!H69 -> 23 | I19: =tabula!I69 -> 70 | J19: =tabula!J69 -> 100 | K19: =tabula!K69 -> 49 | L19: =tabula!L69 -> 100 | M19: =tabula!M69 -> 73 | N19: =tabula!N69 -> 132 | O19: =tabula!O69 -> 725 | P19: =tabula!P69 -> 06 min. 28,184 | Q19: =tabula!Q69 -> 42 | R19: =tabula!R69 -> 09,242 sek.
C20: 64 | D20: =tabula!D70 -> Viljams | E20: =tabula!E70 -> 42 | F20: =tabula!F70 -> 55 | G20: =tabula!G70 -> 100 | H20: =tabula!H70 -> 47 | I20: =tabula!I70 -> 93 | J20: =tabula!J70 -> 131 | K20: =tabula!K70 -> 3 | L20: =tabula!L70 -> 81 | M20: =tabula!M70 -> 124 | N20: =tabula!N70 -> 40 | O20: =tabula!O70 -> 716 | P20: =tabula!P70 -> 05 min. 35,275 | Q20: =tabula!Q70 -> 41 | R20: =tabula!R70 -> 08,177 sek.
C21: 65 | D21: =tabula!D71 -> Mandarīni | E21: =tabula!E71 -> 78 | F21: =tabula!F71 -> 56 | G21: =tabula!G71 -> 128 | H21: =tabula!H71 -> 36 | I21: =tabula!I71 -> 79 | J21: =tabula!J71 -> 95 | K21: =tabula!K71 -> -2 | L21: =tabula!L71 -> 60 | M21: =tabula!M71 -> 63 | N21: =tabula!N71 -> 123 | O21: =tabula!O71 -> 716 | P21: =tabula!P71 -> 08 min. 02,865 | Q21: =tabula!Q71 -> 47 | R21: =tabula!R71 -> 10,274 sek.
C22: 66 | D22: =tabula!D72 -> Cerība mirst pēdējā | E22: =tabula!E72 -> 24 | F22: =tabula!F72 -> 21 | G22: =tabula!G72 -> 96 | H22: =tabula!H72 -> 80 | I22: =tabula!I72 -> 78 | J22: =tabula!J72 -> 87 | K22: =tabula!K72 -> 46 | L22: =tabula!L72 -> 76 | M22: =tabula!M72 -> 86 | N22: =tabula!N72 -> 121 | O22: =tabula!O72 -> 715 | P22: =tabula!P72 -> 06 min. 36,544 | Q22: =tabula!Q72 -> 41 | R22: =tabula!R72 -> 09,672 sek.
C23: 67 | D23: =tabula!D73 -> TAPS AUTO studija | E23: =tabula!E73 -> 84 | F23: =tabula!F73 -> 31 | G23: =tabula!G73 -> 97 | H23: =tabula!H73 -> 92 | I23: =tabula!I73 -> 103 | J23: =tabula!J73 -> 88 | K23: =tabula!K73 -> 41 | L23: =tabula!L73 -> 65 | M23: =tabula!M73 -> 81 | N23: =tabula!N73 -> 22 | O23: =tabula!O73 -> 704 | P23: =tabula!P73 -> 05 min. 39,515 | Q23: =tabula!Q73 -> 41 | R23: =tabula!R73 -> 08,281 sek.
C24: 68 | D24: =tabula!D74 -> Meistars un Margarita | E24: =tabula!E74 -> 100 | F24: =tabula!F74 -> 93 | G24: =tabula!G74 -> 91 | H24: =tabula!H74 -> 50 | I24: =tabula!I74 -> 72 | J24: =tabula!J74 -> 79 | K24: =tabula!K74 -> -16 | L24: =tabula!L74 -> 40 | M24: =tabula!M74 -> 117 | N24: =tabula!N74 -> 61 | O24: =tabula!O74 -> 687 | P24: =tabula!P74 -> 06 min. 06,783 | Q24: =tabula!Q74 -> 40 | R24: =tabula!R74 -> 09,170 sek.
C25: 69 | D25: =tabula!D75 -> AtjaudīgaPiekdiena | E25: =tabula!E75 -> 0 | F25: =tabula!F75 -> 86 | G25: =tabula!G75 -> 121 | H25: =tabula!H75 -> 42 | I25: =tabula!I75 -> 88 | J25: =tabula!J75 -> 105 | K25: =tabula!K75 -> -22 | L25: =tabula!L75 -> 71 | M25: =tabula!M75 -> 110 | N25: =tabula!N75 -> 81 | O25: =tabula!O75 -> 682 | P25: =tabula!P75 -> 04 min. 59,131 | Q25: =tabula!Q75 -> 39 | R25: =tabula!R75 -> 07,670 sek.
C26: 70 | D26: =tabula!D76 -> Imants Dziedoni | E26: =tabula!E76 -> 22 | F26: =tabula!F76 -> 72 | G26: =tabula!G76 -> 104 | H26: =tabula!H76 -> 24 | I26: =tabula!I76 -> 66 | J26: =tabula!J76 -> 56 | K26: =tabula!K76 -> 92 | L26: =tabula!L76 -> 66 | M26: =tabula!M76 -> 71 | N26: =tabula!N76 -> 91 | O26: =tabula!O76 -> 664 | P26: =tabula!P76 -> 06 min. 19,583 | Q26: =tabula!Q76 -> 39 | R26: =tabula!R76 -> 09,733 sek.
C27: 71 | D27: =tabula!D77 -> Pūpolu ielas ZOO | E27: =tabula!E77 -> 78 | F27: =tabula!F77 -> 69 | G27: =tabula!G77 -> 147 | H27: =tabula!H77 -> 21 | I27: =tabula!I77 -> 84 | J27: =tabula!J77 -> 77 | K27: =tabula!K77 -> 77 | L27: =tabula!L77 -> 41 | M27: =tabula!M77 -> 19 | N27: =tabula!N77 -> 44 | O27: =tabula!O77 -> 657 | P27: =tabula!P77 -> 05 min. 37,108 | Q27: =tabula!Q77 -> 39 | R27: =tabula!R77 -> 08,644 sek.
C28: 72 | D28: =tabula!D78 -> Franču kruasāni | E28: =tabula!E78 -> 87 | F28: =tabula!F78 -> 30 | G28: =tabula!G78 -> 49 | H28: =tabula!H78 -> 46 | I28: =tabula!I78 -> 87 | J28: =tabula!J78 -> 101 | K28: =tabula!K78 -> 49 | L28: =tabula!L78 -> 64 | M28: =tabula!M78 -> 88 | N28: =tabula!N78 -> 54 | O28: =tabula!O78 -> 655 | P28: =tabula!P78 -> 08 min. 40,384 | Q28: =tabula!Q78 -> 42 | R28: =tabula!R78 -> 12,390 sek.
C29: 73 | D29: =tabula!D79 -> Mans nav dumš | E29: =tabula!E79 -> 27 | F29: =tabula!F79 -> 16 | G29: =tabula!G79 -> 143 | H29: =tabula!H79 -> 63 | I29: =tabula!I79 -> 80 | J29: =tabula!J79 -> 114 | K29: =tabula!K79 -> 16 | L29: =tabula!L79 -> 97 | M29: =tabula!M79 -> 65 | N29: =tabula!N79 -> 30 | O29: =tabula!O79 -> 651 | P29: =tabula!P79 -> 05 min. 58,654 | Q29: =tabula!Q79 -> 41 | R29: =tabula!R79 -> 08,748 sek.
C30: 74 | D30: =tabula!D80 -> Kikariguu | E30: =tabula!E80 -> 58 | F30: =tabula!F80 -> 40 | G30: =tabula!G80 -> 73 | H30: =tabula!H80 -> 46 | I30: =tabula!I80 -> 88 | J30: =tabula!J80 -> 88 | K30: =tabula!K80 -> 54 | L30: =tabula!L80 -> 74 | M30: =tabula!M80 -> 92 | N30: =tabula!N80 -> 30 | O30: =tabula!O80 -> 643 | P30: =tabula!P80 -> 05 min. 00,700 | Q30: =tabula!Q80 -> 36 | R30: =tabula!R80 -> 08,353 sek.
C31: 75 | D31: =tabula!D81 -> Pumpurs_Koknese | E31: =tabula!E81 -> 33 | F31: =tabula!F81 -> 21 | G31: =tabula!G81 -> 93 | H31: =tabula!H81 -> 23 | I31: =tabula!I81 -> 89 | J31: =tabula!J81 -> 132 | K31: =tabula!K81 -> 24 | L31: =tabula!L81 -> 79 | M31: =tabula!M81 -> 103 | N31: =tabula!N81 -> 35 | O31: =tabula!O81 -> 632 | P31: =tabula!P81 -> 05 min. 40,528 | Q31: =tabula!Q81 -> 37 | R31: =tabula!R81 -> 09,203 sek.
C32: 76 | D32: =tabula!D82 -> Mūrnieki | E32: =tabula!E82 -> 86 | F32: =tabula!F82 -> 28 | G32: =tabula!G82 -> 94 | H32: =tabula!H82 -> 21 | I32: =tabula!I82 -> 83 | J32: =tabula!J82 -> 105 | K32: =tabula!K82 -> 13 | L32: =tabula!L82 -> 52 | M32: =tabula!M82 -> 92 | N32: =tabula!N82 -> 50 | O32: =tabula!O82 -> 624 | P32: =tabula!P82 -> 05 min. 59,838 | Q32: =tabula!Q82 -> 39 | R32: =tabula!R82 -> 09,227 sek.
C33: 77 | D33: =tabula!D83 -> KaiTai | E33: =tabula!E83 -> 62 | F33: =tabula!F83 -> 59 | G33: =tabula!G83 -> 100 | H33: =tabula!H83 -> 19 | I33: =tabula!I83 -> 76 | J33: =tabula!J83 -> 85 | K33: =tabula!K83 -> 74 | L33: =tabula!L83 -> 26 | M33: =tabula!M83 -> 107 | N33: =tabula!N83 -> 15 | O33: =tabula!O83 -> 623 | P33: =tabula!P83 -> 06 min. 45,774 | Q33: =tabula!Q83 -> 39 | R33: =tabula!R83 -> 10,404 sek.
C34: 78 | D34: =tabula!D84 -> Petūnijas | E34: =tabula!E84 -> 54 | F34: =tabula!F84 -> 53 | G34: =tabula!G84 -> 91 | H34: =tabula!H84 -> 27 | I34: =tabula!I84 -> 81 | J34: =tabula!J84 -> 95 | K34: =tabula!K84 -> 44 | L34: =tabula!L84 -> 87 | M34: =tabula!M84 -> 34 | N34: =tabula!N84 -> 35 | O34: =tabula!O84 -> 601 | P34: =tabula!P84 -> 06 min. 59,386 | Q34: =tabula!Q84 -> 39 | R34: =tabula!R84 -> 10,753 sek.
C35: 79 | D35: =tabula!D85 -> Druuuu | E35: =tabula!E85 -> 50 | F35: =tabula!F85 -> 33 | G35: =tabula!G85 -> 60 | H35: =tabula!H85 -> 34 | I35: =tabula!I85 -> 105 | J35: =tabula!J85 -> 71 | K35: =tabula!K85 -> 64 | L35: =tabula!L85 -> 59 | M35: =tabula!M85 -> 86 | N35: =tabula!N85 -> 38 | O35: =tabula!O85 -> 600 | P35: =tabula!P85 -> 08 min. 15,348 | Q35: =tabula!Q85 -> 39 | R35: =tabula!R85 -> 12,701 sek.
C36: 80 | D36: =tabula!D86 -> Tagad zinu - ko nezināju! | E36: =tabula!E86 -> 50 | F36: =tabula!F86 -> 22 | G36: =tabula!G86 -> 141 | H36: =tabula!H86 -> 17 | I36: =tabula!I86 -> 78 | J36: =tabula!J86 -> 45 | K36: =tabula!K86 -> 25 | L36: =tabula!L86 -> 56 | M36: =tabula!M86 -> 94 | N36: =tabula!N86 -> 61 | O36: =tabula!O86 -> 589 | P36: =tabula!P86 -> 04 min. 22,099 | Q36: =tabula!Q86 -> 35 | R36: =tabula!R86 -> 07,489 sek.
C37: 81 | D37: =tabula!D87 -> Sanitaaa | E37: =tabula!E87 -> 32 | F37: =tabula!F87 -> 60 | G37: =tabula!G87 -> 110 | H37: =tabula!H87 -> 23 | I37: =tabula!I87 -> 62 | J37: =tabula!J87 -> 95 | K37: =tabula!K87 -> 8 | L37: =tabula!L87 -> 76 | M37: =tabula!M87 -> 93 | N37: =tabula!N87 -> 26 | O37: =tabula!O87 -> 585 | P37: =tabula!P87 -> 06 min. 25,841 | Q37: =tabula!Q87 -> 37 | R37: =tabula!R87 -> 10,428 sek.
C38: 82 | D38: =tabula!D88 -> Mūzikas draugi | E38: =tabula!E88 -> 73 | F38: =tabula!F88 -> 80 | G38: =tabula!G88 -> 105 | H38: =tabula!H88 -> 57 | I38: =tabula!I88 -> 98 | J38: =tabula!J88 -> 44 | K38: =tabula!K88 -> 17 | L38: =tabula!L88 -> 24 | M38: =tabula!M88 -> 58 | N38: =tabula!N88 -> 22 | O38: =tabula!O88 -> 578 | P38: =tabula!P88 -> 06 min. 54,640 | Q38: =tabula!Q88 -> 37 | R38: =tabula!R88 -> 11,206 sek.
C39: 83 | D39: =tabula!D89 -> Trakie Truši | E39: =tabula!E89 -> 19 | F39: =tabula!F89 -> 72 | G39: =tabula!G89 -> 86 | H39: =tabula!H89 -> 54 | I39: =tabula!I89 -> 87 | J39: =tabula!J89 -> 70 | K39: =tabula!K89 -> 47 | L39: =tabula!L89 -> 48 | M39: =tabula!M89 -> 66 | N39: =tabula!N89 -> 23 | O39: =tabula!O89 -> 572 | P39: =tabula!P89 -> 05 min. 28,822 | Q39: =tabula!Q89 -> 34 | R39: =tabula!R89 -> 09,671 sek.
C40: 84 | D40: =tabula!D90 -> ASICA | E40: =tabula!E90 -> 71 | F40: =tabula!F90 -> 16 | G40: =tabula!G90 -> 78 | H40: =tabula!H90 -> 38 | I40: =tabula!I90 -> 80 | J40: =tabula!J90 -> 89 | K40: =tabula!K90 -> 29 | L40: =tabula!L90 -> 53 | M40: =tabula!M90 -> 63 | N40: =tabula!N90 -> 40 | O40: =tabula!O90 -> 557 | P40: =tabula!P90 -> 07 min. 02,622 | Q40: =tabula!Q90 -> 36 | R40: =tabula!R90 -> 11,740 sek.
C41: 85 | D41: =tabula!D91 -> Spalvaina tumbiņa | E41: =tabula!E91 -> 55 | F41: =tabula!F91 -> 33 | G41: =tabula!G91 -> 89 | H41: =tabula!H91 -> 73 | I41: =tabula!I91 -> 29 | J41: =tabula!J91 -> 77 | K41: =tabula!K91 -> 44 | L41: =tabula!L91 -> 51 | M41: =tabula!M91 -> 58 | N41: =tabula!N91 -> 33 | O41: =tabula!O91 -> 542 | P41: =tabula!P91 -> 08 min. 43,349 | Q41: =tabula!Q91 -> 39 | R41: =tabula!R91 -> 13,419 sek.
C42: 86 | D42: =tabula!D92 -> ZEMDEGAS | E42: =tabula!E92 -> 66 | F42: =tabula!F92 -> 80 | G42: =tabula!G92 -> 59 | H42: =tabula!H92 -> 35 | I42: =tabula!I92 -> 67 | J42: =tabula!J92 -> 62 | K42: =tabula!K92 -> 33 | L42: =tabula!L92 -> 27 | M42: =tabula!M92 -> 64 | N42: =tabula!N92 -> 42 | O42: =tabula!O92 -> 535 | P42: =tabula!P92 -> 08 min. 13,088 | Q42: =tabula!Q92 -> 37 | R42: =tabula!R92 -> 13,327 sek.
C43: 87 | D43: =tabula!D93 -> Pillows | E43: =tabula!E93 -> 49 | F43: =tabula!F93 -> 54 | G43: =tabula!G93 -> 118 | H43: =tabula!H93 -> 19 | I43: =tabula!I93 -> 58 | J43: =tabula!J93 -> 65 | K43: =tabula!K93 -> 47 | L43: =tabula!L93 -> 23 | M43: =tabula!M93 -> 68 | N43: =tabula!N93 -> 31 | O43: =tabula!O93 -> 532 | P43: =tabula!P93 -> 06 min. 03,296 | Q43: =tabula!Q93 -> 34 | R43: =tabula!R93 -> 10,685 sek.
C44: 88 | D44: =tabula!D94 -> The pink carrot | E44: =tabula!E94 -> 56 | F44: =tabula!F94 -> 84 | G44: =tabula!G94 -> 91 | H44: =tabula!H94 -> 0 | I44: =tabula!I94 -> 68 | J44: =tabula!J94 -> 103 | K44: =tabula!K94 -> 18 | L44: =tabula!L94 -> 33 | M44: =tabula!M94 -> 38 | N44: =tabula!N94 -> 27 | O44: =tabula!O94 -> 518 | P44: =tabula!P94 -> 05 min. 01,022 | Q44: =tabula!Q94 -> 32 | R44: =tabula!R94 -> 09,407 sek.
C45: 89 | D45: =tabula!D95 -> Fredijs un Co. | E45: =tabula!E95 -> 59 | F45: =tabula!F95 -> 43 | G45: =tabula!G95 -> 132 | H45: =tabula!H95 -> 20 | I45: =tabula!I95 -> 39 | J45: =tabula!J95 -> 41 | K45: =tabula!K95 -> 14 | L45: =tabula!L95 -> 55 | M45: =tabula!M95 -> 41 | N45: =tabula!N95 -> 60 | O45: =tabula!O95 -> 504 | P45: =tabula!P95 -> 03 min. 19,946 | Q45: =tabula!Q95 -> 29 | R45: =tabula!R95 -> 06,895 sek.
C46: 90 | D46: =tabula!D96 -> Stirnas | E46: =tabula!E96 -> 33 | F46: =tabula!F96 -> 0 | G46: =tabula!G96 -> 105 | H46: =tabula!H96 -> 14 | I46: =tabula!I96 -> 89 | J46: =tabula!J96 -> 86 | K46: =tabula!K96 -> 1 | L46: =tabula!L96 -> 46 | M46: =tabula!M96 -> 64 | N46: =tabula!N96 -> 30 | O46: =tabula!O96 -> 468 | P46: =tabula!P96 -> 04 min. 11,389 | Q46: =tabula!Q96 -> 29 | R46: =tabula!R96 -> 08,669 sek.
C47: 91 | D47: =tabula!D97 -> Yuki | E47: =tabula!E97 -> 0 | F47: =tabula!F97 -> 56 | G47: =tabula!G97 -> 127 | H47: =tabula!H97 -> 38 | I47: =tabula!I97 -> 69 | J47: =tabula!J97 -> 73 | K47: =tabula!K97 -> 27 | L47: =tabula!L97 -> 12 | M47: =tabula!M97 -> 55 | N47: =tabula!N97 -> 0 | O47: =tabula!O97 -> 457 | P47: =tabula!P97 -> 04 min. 44,566 | Q47: =tabula!Q97 -> 29 | R47: =tabula!R97 -> 09,813 sek.
C48: 92 | D48: =tabula!D98 -> Smart Pants | E48: =tabula!E98 -> 16 | F48: =tabula!F98 -> 22 | G48: =tabula!G98 -> 63 | H48: =tabula!H98 -> 23 | I48: =tabula!I98 -> 74 | J48: =tabula!J98 -> 80 | K48: =tabula!K98 -> 51 | L48: =tabula!L98 -> 34 | M48: =tabula!M98 -> 37 | N48: =tabula!N98 -> 27 | O48: =tabula!O98 -> 427 | P48: =tabula!P98 -> 05 min. 28,010 | Q48: =tabula!Q98 -> 27 | R48: =tabula!R98 -> 12,149 sek.
C49: 93 | D49: =tabula!D99 -> Kokinatori | E49: =tabula!E99 -> 46 | F49: =tabula!F99 -> 19 | G49: =tabula!G99 -> 90 | H49: =tabula!H99 -> 0 | I49: =tabula!I99 -> 64 | J49: =tabula!J99 -> 84 | K49: =tabula!K99 -> -11 | L49: =tabula!L99 -> 24 | M49: =tabula!M99 -> 72 | N49: =tabula!N99 -> 27 | O49: =tabula!O99 -> 415 | P49: =tabula!P99 -> 04 min. 59,577 | Q49: =tabula!Q99 -> 28 | R49: =tabula!R99 -> 10,699 sek.
C50: 94 | D50: =tabula!D100 -> Ašie5 | E50: =tabula!E100 -> 12 | F50: =tabula!F100 -> 28 | G50: =tabula!G100 -> 97 | H50: =tabula!H100 -> 31 | I50: =tabula!I100 -> 72 | J50: =tabula!J100 -> 66 | K50: =tabula!K100 -> 0 | L50: =tabula!L100 -> 27 | M50: =tabula!M100 -> 38 | N50: =tabula!N100 -> 30 | O50: =tabula!O100 -> 401 | P50: =tabula!P100 -> 05 min. 29,756 | Q50: =tabula!Q100 -> 28 | R50: =tabula!R100 -> 11,777 sek.
C51: 95 | D51: =tabula!D101 -> Gulbji Gulbenē | E51: =tabula!E101 -> 29 | F51: =tabula!F101 -> 60 | G51: =tabula!G101 -> 40 | H51: =tabula!H101 -> 0 | I51: =tabula!I101 -> 65 | J51: =tabula!J101 -> 41 | K51: =tabula!K101 -> 66 | L51: =tabula!L101 -> 16 | M51: =tabula!M101 -> 65 | N51: =tabula!N101 -> 5 | O51: =tabula!O101 -> 387 | P51: =tabula!P101 -> 08 min. 48,742 | Q51: =tabula!Q101 -> 31 | R51: =tabula!R101 -> 17,056 sek.
C52: 96 | D52: =tabula!D102 -> Jiep | E52: =tabula!E102 -> 53 | F52: =tabula!F102 -> 29 | G52: =tabula!G102 -> 75 | H52: =tabula!H102 -> 22 | I52: =tabula!I102 -> 38 | J52: =tabula!J102 -> 70 | K52: =tabula!K102 -> 41 | L52: =tabula!L102 -> 9 | M52: =tabula!M102 -> 10 | N52: =tabula!N102 -> 15 | O52: =tabula!O102 -> 362 | P52: =tabula!P102 -> 05 min. 22,977 | Q52: =tabula!Q102 -> 26 | R52: =tabula!R102 -> 12,422 sek.
C53: 97 | D53: =tabula!D103 -> Vilkoga1 | E53: =tabula!E103 -> 33 | F53: =tabula!F103 -> 102 | G53: =tabula!G103 -> 97 | H53: =tabula!H103 -> 0 | I53: =tabula!I103 -> 20 | J53: =tabula!J103 -> 39 | K53: =tabula!K103 -> 22 | L53: =tabula!L103 -> 7 | M53: =tabula!M103 -> 7 | N53: =tabula!N103 -> 7 | O53: =tabula!O103 -> 334 | P53: =tabula!P103 -> 04 min. 52,210 | Q53: =tabula!Q103 -> 24 | R53: =tabula!R103 -> 12,175 sek.
C54: 98 | D54: =tabula!D104 -> Agnese | E54: =tabula!E104 -> 37 | F54: =tabula!F104 -> 26 | G54: =tabula!G104 -> 114 | H54: =tabula!H104 -> 23 | I54: =tabula!I104 -> 65 | J54: =tabula!J104 -> 19 | K54: =tabula!K104 -> -10 | L54: =tabula!L104 -> 0 | M54: =tabula!M104 -> 0 | N54: =tabula!N104 -> 0 | O54: =tabula!O104 -> 274 | P54: =tabula!P104 -> 03 min. 00,132 | Q54: =tabula!Q104 -> 19 | R54: =tabula!R104 -> 09,481 sek.
C55: 99 | D55: =tabula!D105 -> Trīc Trīc Favorīts | E55: =tabula!E105 -> 0 | F55: =tabula!F105 -> 0 | G55: =tabula!G105 -> 0 | H55: =tabula!H105 -> 0 | I55: =tabula!I105 -> 0 | J55: =tabula!J105 -> 0 | K55: =tabula!K105 -> 0 | L55: =tabula!L105 -> 0 | M55: =tabula!M105 -> 130 | N55: =tabula!N105 -> 22 | O55: =tabula!O105 -> 152 | P55: =tabula!P105 -> 00 min. 57,868 | Q55: =tabula!Q105 -> 7 | R55: =tabula!R105 -> 08,267 sek.
C56: 100 | D56: =tabula!D106 -> Aidža | E56: =tabula!E106 -> 37 | F56: =tabula!F106 -> 75 | G56: =tabula!G106 -> 14 | H56: =tabula!H106 -> 0 | I56: =tabula!I106 -> 0 | J56: =tabula!J106 -> 0 | K56: =tabula!K106 -> 0 | L56: =tabula!L106 -> 0 | M56: =tabula!M106 -> 0 | N56: =tabula!N106 -> 0 | O56: =tabula!O106 -> 126 | P56: =tabula!P106 -> 01 min. 39,831 | Q56: =tabula!Q106 -> 8 | R56: =tabula!R106 -> 12,479 sek.
C57: 101 | D57: =tabula!D107 -> Dārta | E57: =tabula!E107 -> 36 | F57: =tabula!F107 -> 0 | G57: =tabula!G107 -> 0 | H57: =tabula!H107 -> 0 | I57: =tabula!I107 -> 0 | J57: =tabula!J107 -> 0 | K57: =tabula!K107 -> 0 | L57: =tabula!L107 -> 0 | M57: =tabula!M107 -> 0 | N57: =tabula!N107 -> 0 | O57: =tabula!O107 -> 36 | P57: =tabula!P107 -> 00 min. 58,417 | Q57: =tabula!Q107 -> 3 | R57: =tabula!R107 -> 19,472 sek.
C58: 102 | D58: =tabula!D108 -> Gabriela | E58: =tabula!E108 -> 14 | F58: =tabula!F108 -> 0 | G58: =tabula!G108 -> 0 | H58: =tabula!H108 -> 0 | I58: =tabula!I108 -> 0 | J58: =tabula!J108 -> 0 | K58: =tabula!K108 -> 0 | L58: =tabula!L108 -> 0 | M58: =tabula!M108 -> 0 | N58: =tabula!N108 -> 0 | O58: =tabula!O108 -> 14 | P58: =tabula!P108 -> 00 min. 52,287 | Q58: =tabula!Q108 -> 2 | R58: =tabula!R108 -> 26,144 sek.
C60: LIELDRAUGS ATBALSTĪTĀJI

Sheet raundi
B2: =CONCATENATE(tabula!C2," --> Raundu uzvarētāji") -> "Latviešu mūzikas viktorīna" (tiešsaistē / vebinārā) | 2024.gada 29.novembris --> Raundu uzvarētāji
B3: # | C3: Raunda nosaukums | D3: Dalībnieks | E3: Rezultāts | F3: AVG | G3: MAX | H3: % no max
B4: 1 | C4: =TRANSPOSE(tabula!E4:N4) -> Pavediens: Skan pavisam citādāk | D4: Pelmenis Amerikā | E4: 136 | F4: =TRANSPOSE(tabula!E6:N6) -> 71.4 | G4: =TRANSPOSE(tabula!E5:N5) -> 150 | H4: =E4/G4 -> 0.9066666667
B5: 2 | C5: 80-ie | D5: Labvēlīgais TOPs | E5: 142 | F5: 69.5 | G5: 150 | H5: =E5/G5 -> 0.9466666667
B6: 3 | C6: Ekspresis | D6: Rainisskrienviens | E6: 182 | F6: 107.4 | G6: 204 | H6: 0.8921568627
B7: 4 | C7: 90-ie | D7: Labvēlīgais TOPs | E7: 149 | F7: 57.1 | G7: 150 | H7: 0.9933333333
B8: 5 | C8: Vizuālais | D8: Krauklīt's sēž štābiņā | E8: 135 | F8: 82.9 | G8: 150 | H8: 0.9
B9: 6 | C9: 2000-ie | D9: kD | E9: 143 | F9: 100.4 | G9: 150 | H9: 0.9533333333
B10: 7 | C10: Risks: Izklausās dzirdēts | D10: Bandītu perēklis | E10: 106 | F10: 46.2 | G10: 120 | H10: 0.8833333333
B11: 8 | C11: 2010-ie | D11: Matīss un Signija | E11: 126 | F11: 69.8 | G11: 150 | H11: 0.84
B12: 9 | C12: Kas kopīgs? | D12: BraveDucks | E12: 169 | F12: 92.5 | G12: 180 | H12: 0.9388888889
B13: 10 | C13: 2020-ie | D13: stabulēni | E13: 132 | F13: 62.5 | G13: 150 | H13: 0.88
B14: - | C14: Uzvarētājs | E14: =tabula!O7 -> 1203 | F14: =tabula!O6 -> 759.7 | G14: =SUM(G4:G13) -> 1554 | H14: =E14/G14 -> 0.7741312741
C15: =tabula!D7 -> Labvēlīgais TOPs
B17: LIELDRAUGS ATBALSTĪTĀJI
